Workbook

Sheet hist. data
A1: Title: | B1: 10-Year Treasury Constant Maturity Rate | AF1: =((W42-AF42)^2)/4 -> 1.332034979e-07 | AM1: αβ= | AN1: 0.03476198547 | AO1: β/(α-1)= | AP1: 2.594255718e+27
A2: Series ID: | B2: GS10 | AF2: =((W44-AF44)^2)/4 -> 3.214788846e-07 | AM2: τ= | AN2: 1.105316975 | AO2: τ= | AP2: 0.0611641074
A3: Source: | B3: Board of Governors of the Federal Reserve System | AF3: =((W46-AF46)^2)/4 -> 4.830353562e-08 | AJ3: mean | AK3: =AK11*AK12 -> 0.03517468551 | AL3: =AL12/(AL11-1) -> -0.0269106822 | AM3: α = | AN3: 0.8901577598 | AO3: α = | AP3: 151.9889125 | AS3: These are all based on best mix of a stand-alone
A4: Release: | B4: H.15 Selected Interest Rates | AF4: =((W52-AF52)^2)/4 -> 1.226817717e-07 | AJ4: std dev | AK4: =AK12*AK11^0.5 -> 0.03473992224 | AL4: =AL3/(AL11-2)^0.5 ->  | AM4: β = | AN4: 0.03956919145 | AO4: β = | AP4: 1.296565873e+34 | AR4: 0.864902268 | AS4: best gen-gamma and best gen-inverse gamma
A5: Seasonal Adjustment: | B5: Not Applicable | Q5: LOGNORMAL TO FIT VALUES | U5: VARIOUS DISTRIBUTIONS TO FIT NORMALIZED /LOGDELTA/ | AF5: =SUM(AF1:AF4)^0.5 -> 0.0007909915865 | AK5: from | AM5: rms error | AN5: 0.00643013156 | AO5: rms error | AP5: 0.008741836779 | AQ5: rms error | AR5: 0.00636127707
A6: Frequency: | B6: Monthly | AK6: data on
A7: Units: | B7: Percent | R7: from | S7: from | Y7: =(($W7-X7)^2)/50 -> 0 | AI7: α = | AJ7: =($AK$9/$AK$10)^2 -> 0.9989003421 | AK7: normalized | AL7: =2+(AK$9/AK$10)^2 -> 2.998900342 | AM7: this should pick up Weibull | AP7: and inv. Weibull
A8: Date Range: | B8: 1953-04 to 2012-04 | R8: LN(data) | S8: data | AI8: β = | AJ8: =$AK$9/AJ7 -> 0.03142540888 | AK8: abslogdelta | AL8: =AK$9*(AL7-1) -> 0.06274718417
A9: Last Updated: | B9: 2012-05-22 | Q9: mean | R9: =EXP(R12+0.5*R13^2) -> 6.214117959 | S9: =B734 -> 6.20580872 | AA9: α= | AB9: 1 | AC9: α= | AD9: 0.1437367396 | AE9: α= | AF9: -0.4888804854 | AG9: α= | AH9: 27.97422577 | AI9: 1.145069951 | AJ9: mean | AK9: =$H734 -> 0.03139085168 | AM9: αβ= | AN9: 0.03476198547 | AO9: β/(α-1)= | AP9: 2.594255718e+27 | AQ9: 0 | AR9: 0 | BE9: mean | BF9: =BA734 -> 1.000500224 | BJ9: inv.mean | BK9: =BJ734 -> 1.000617614
A10: Notes: | B10: Averages of business days. For further information regarding treasury | Q10: std dev | R10: =R9*(EXP(R13^2)-1)^0.5 -> 2.843379649 | S10: =B736 -> 2.732030489 | W10: µ = | X10: 0 | Y10: µ = | Z10: 0 | AA10: µ = | AB10: 0 | AC10: µ = | AD10: 0 | AE10: µ = | AF10: 0 | AG10: µ = | AH10: 0 | AI10: 0 | AJ10: std dev | AK10: =$H736 -> 0.03140812553 | AM10: τ= | AN10: 0.7774221376 | AO10: τ= | AP10: 0.05870210574 | AQ10: 0 | AR10: 0 | AS10: These are based on the gen-gamma and | AY10: picks up the total low extreme probability … see counts | BE10: std dev | BF10: =BA736 -> 0.04325140016 | BJ10: inv.std dev | BK10: =BJ736 -> 0.04333484597
B11: constant maturity data, please refer to | W11: σ = | X11: =F736 -> 0.04440558432 | Y11: σ = | Z11: 0.03648296785 | AA11: c= | AB11: 44.69302997 | AC11: c= | AD11: 195.1863022 | AE11: c= | AF11: 32.08407026 | AG11: c= | AH11: 1.998063098 | AI11: 43.79597397 | AJ11: α = | AK11: 1.025186226 | AL11: 0.6029619839 | AM11: α = | AN11: 7.197022359 | AO11: α = | AP11: 114.6331143 | AQ11: 0 | AR11: 0 | AS11: gen-inverse gamma within the best mixture
B12: http://www.federalreserve.gov/releases/h15/current/h15.pdf | Q12: µ = | R12: =I743 -> 1.731774757 | S12: =LN(S9)-0.5*S13^2 -> 1.736911156 | AJ12: β = | AK12: 0.03431053269 | AL12: 0.01068456387 | AM12: β = | AN12: 0.00259408961 | AO12: β = | AP12: 2.42513705e+33 | AQ12: 0 | AR12: 0.2802136888 | BE12: α= | BF12: =(2*(BF10/BF9)^2-1)/((BF10/BF9)^2-1) -> 0.9981276875 | BJ12: α=
B13: http://federalreserve.gov/releases/h15/data.htm | P13: frequency | Q13: σ = | R13: =I736 -> 0.4360023772 | S13: =(LN((S10/S9)^2+1))^0.5 -> 0.4208909297 | W13: frequency | Z13: half | AB13: half | AD13: exp-symmetric | AF13: exp-symmetric | AH13: exp-symmetric | AJ13: 0.007369518611 | AM13: 0.03173240644 | AN13: generalized | AP13: generalized | AR13: gen. gamma-inv.gamma | BE13: θ= | BF13: 0.8689013858 | BG13: =$BF$9*($BF$12-1) -> -0.001873249076 | BJ13: θ=
E14: NORMALIZED | H14: NORMALIZED | L14: SIXTH | N14: labels | P14: DATA | R14: LOGNORMAL | U14: labels | W14: data | X14: gaussian | Y14: rms error | Z14: gaussian | AA14: rms error | AB14: logistic | AC14: rms error | AD14: inv. Burr-Burr | AE14: rms error | AF14: inv. Burr | AG14: rms error | AH14: Burr | AI14: rms error | AJ14: rms error | AK14: gamma | AL14: inv. gamma | AM14: rms error | AN14: gamma | AO14: rms error | AP14: inv. gamma | AQ14: rms error | AR14: mixture | AS14: rms error | AW14: FREQUENCY | AX14: GAUSSIAN | AY14: digamma | AZ14: dimixture | BA14: ELOGDELTA | BE14: frequency | BF14: exp-pareto | BH14: rms error | BJ14: 1/ELOGDELTA | BK14: log-inv-pareto
A15: DATE | B15: VALUE | C15: DELTA | D15: /DELTA/ | E15: /DELTA/ | F15: LOGDELTA | G15: /LOGDELTA/ | H15: /LOGDELTA/ | I15: LOG(VALUE/100) | J15: SIXTH MOMENT | K15: FOURTH MOMENT | L15: LOG MOMENT | M15: bins | O15: count | T15: bins | V15: count | Y15: =SUM(Y16,Y18:Y53)^0.5 -> 0.01086439078 | AA15: =SUM(AA16,AA18:AA53)^0.5 -> 0.008876123832 | AC15: =SUM(AC16,AC18:AC53)^0.5 -> 0.007674699919 | AE15: =SUM(AE16,AE18:AE53)^0.5 -> 0.006595748157 | AG15: =SUM(AG16,AG18:AG53)^0.5 -> 0.006405446841 | AI15: =SUM(AI16,AI18:AI53)^0.5 -> 0.006464506208 | AJ15: =SUM(AJ16,AJ18:AJ53)^0.5 -> 0.006445433322 | AM15: =SUM(AM16,AM18:AM53)^0.5 -> 0.01225191841 | AO15: =SUM(AO16,AO18:AO53)^0.5 -> 0.03233143155 | AQ15: =SUM(AQ16,AQ18:AQ53)^0.5 -> 0.01325366122 | AS15: =SUM(AS16,AS18:AS53)^0.5 -> 0.004508268546 | AT15: bins | AU15: labels | AV15: counts | AW15: DATA | BB15: bins | BC15: labels | BD15: counts | BE15: data | BH15: =(SUM(BH17:BH118)^0.5) -> 
A16: 1953-04-19 | B16: 2.83 | I16: =LN(B16/100) -> -3.564893474 | J16: =($B16-$B$734)^6 -> 1480.017955 | K16: =($B16-$B$734)^4 -> 129.8707423 | L16: =($I16-$I$734)^6 -> 0.1093316095 | M16: 0 | O16: =FREQUENCY(B16:B726,M16:M66) -> 0 | R16: =LOGNORMDIST(M17,R$12,R$13)-LOGNORMDIST(1E-97,R$12,R$13) -> 4.291871021e-13 | T16: 0 | V16: =FREQUENCY(H17:H726,T16:T66) -> 0 | W16: =V17/710 -> 0.05774647887 | X16: =2*( NORMDIST($T17,X$10,X$11,TRUE)-NORMDIST($T16,X$10,X$11,TRUE)) -> 0.04489656409 | Y16: =(0.5*($W16-X16)^2)/36.5 -> 2.261922053e-06 | Z16: =2*( NORMDIST($T17,Z$10,Z$11,TRUE)-NORMDIST($T16,Z$10,Z$11,TRUE)) -> 0.05463238125 | AA16: =(0.5*($W16-Z16)^2)/36.5 -> 1.328438905e-07 | AB16: =2*(1/(1+EXP(-AB$11*$T17))-1/(1+EXP(-AB$11*T16))) -> 0.05580823959 | AC16: =(0.5*($W16-AB16)^2)/36.5 -> 5.146262362e-08 | AD16: =((1/(1+EXP(-AD$11*T17)))^AD$9+1-(1-1/(1+EXP(-AD$11*T17)))^AD$9)-((1/(1+EXP(-AD$11*T16)))^AD$9+1-(1-1/(1+EXP(-AD$11*T16)))^AD$9) -> 0.06323204795 | AE16: =(0.5*($W16-AD16)^2)/36.5 -> 4.122118924e-07 | AF16: =2*(0.5*(2^AF$9-(2-(2/(1+EXP(-AF$11*T17)))^AF$9))/(2^AF$9-1)-0.5*(2^AF$9-(2-(2/(1+EXP(-AF$11*T16)))^AF$9))/(2^AF$9-1)) -> 0.0662096973 | AG16: =(0.5*($W16-AF16)^2)/36.5 -> 9.811789887e-07 | AH16: =2*(0.5*(2-(2/(EXP(AH$11*T17)+1))^AH$9)-0.5*(2-(2/(EXP(AH$11*T16)+1))^AH$9)) -> 0.06756430104 | AI16: =(0.5*($W16-AH16)^2)/36.5 -> 1.32040592e-06 | AJ16: =(0.5*($W16-AK16)^2)/36.5 -> 7.300941926e-07 | AK16: =(GAMMADIST(T17,AK11,AK12,TRUE)-GAMMADIST(1E-97,AK11,AK12,TRUE)) -> 0.06504694982 | AL16: =(1-GAMMADIST(1/T17,AL11,1/AL12,TRUE))-(1-GAMMADIST(1/1E-97,AL11,1/AL12,TRUE)) -> 0.004895192924 | AM16: =(0.5*($W16-AL16)^2)/36.5 -> 3.826381406e-05 | AN16: =(GAMMADIST($T17^AN$10,AN$11,AN$12^AN$10,TRUE)-GAMMADIST(1E-97^AN$10,AN$11,AN$12^AN$10,TRUE)) -> 4.636649162e-05 | AO16: =(0.5*($W16-AN16)^2)/36.5 -> 4.560688998e-05 | AP16: =(1-GAMMADIST((1/T17)^AP$10,AP$11,(1/AP$12)^AP$10,TRUE)) -> 0.08542945953 | AQ16: =(0.5*($W16-AP16)^2)/36.5 -> 1.049790983e-05 | AR16: =AR$12*AN16+(1-AR$12)*AP16 -> 0.06150394807 | AS16: =(0.5*($W16-AR16)^2)/36.5 -> 1.934051333e-07 | AT16: =$F$734-0.1925 -> -0.193285705 | AV16: =FREQUENCY(F17:F726,AT16:AT74) -> 2 | AW16: =AV16/710 -> 0.002816901408 | AX16: =NORMDIST(AT16,F$734,F$736,TRUE) -> 7.286669281e-06 | AY16: =0.5*(1-GAMMADIST(ABS(AT16-$F$734),AK$11,AK$12,TRUE)) -> 0.00194533313 | BB16: =EXP(AT16) -> 0.8242464491 | BD16: =FREQUENCY(BA17:BA726,BB16:BB74) -> 2 | BE16: =AW16 -> 0.002816901408 | BF16: =IF(ISERR(BG16),0,BG16) -> 
A17: 1953-05-19 | B17: 3.05 | C17: =B17-B16 -> 0.22 | D17: =ABS(C17) -> 0.22 | E17: =ABS(C17-C$734) -> 0.2217042254 | F17: =LN(B17/B16) -> 0.07486487896 | G17: =IF(F17=0,0.00065,ABS(F17)) -> 0.07486487896 | H17: =IF(F17=F$734,0.00065,ABS(F17-F$734)) -> 0.07565058398 | I17: =LN(B17/100) -> -3.490028595 | J17: =(B17-$B$734)^6 -> 987.7886491 | K17: =($B17-$B$734)^4 -> 99.18424402 | L17: =($I17-$I$734)^6 -> 0.05497449913 | M17: 0.25 | N17: =0 -> 0 | O17: 0 | P17: =2*O17/711 -> 0 | R17: =LOGNORMDIST(1E-97,R$12,R$13)/((1E-97)/0.005) -> 0 | T17: 0.0025 | U17: =0 -> 0 | V17: 41 | W17: =V18/710 -> 0.1154929577 | X17: =2*X16 -> 0.08979312818 | Z17: =2*Z16 -> 0.1092647625 | AB17: =2*AB16 -> 0.1116164792 | AD17: =2*AD16 -> 0.1264640959 | AF17: =2*AF16 -> 0.1324193946 | AH17: =2*AH16 -> 0.1351286021 | AK17: =2*AK16 -> 0.1300938996 | AL17: =2*AL16 -> 0.009790385848 | AN17: =2*AN16 -> 9.273298324e-05 | AP17: =2*AP16 -> 0.1708589191 | AR17: =AR$12*AN17+(1-AR$12)*AP17 -> 0.1230078961 | AT17: =AT16+0.0075 -> -0.185785705 | AU17: =$F$734-0.1925+0.00375 -> -0.189535705 | AV17: 0 | AW17: =AV17/710 -> 0 | AX17: =NORMDIST(AT17,F$734,F$736,TRUE)-NORMDIST(AT16,F$734,F$736,TRUE) -> 8.203173389e-06 | AY17: =IF(AT17 <$F$734,0.5*(1-GAMMADIST(ABS(AT17-$F$734),AK$11,AK$12,TRUE))-0.5*(1-GAMMADIST(ABS(AT16-$F$734),AK$11,AK$12,TRUE)),0.5*(GAMMADIST(ABS(AT17-$F$734),AK$11,AK$12,TRUE))-0.5*( GAMMADIST(ABS(AT16-$F$734),AK$11,AK$12,TRUE))) -> 0.0004732019864 | BA17: =B17/B16 -> 1.077738516 | BB17: =EXP(AT17) -> 0.8304515375 | BC17: =EXP(AU17) -> 0.8273431761 | BD17: 0 | BE17: =AW17 -> 0 | BF17: =IF(ISERR(BG17),0,BG17) -> 0.01408717053 | BG17: =1-(BF$13/(LN(BB17)+BF$13))^BF$12-(1-(BF$13/(LN(BB16)+BF$13))^BF$12) -> 0.01408717053 | BH17: =((BE17-BF17)^2)/102 -> 1.945572289e-06 | BJ17: =1/BA17 -> 0.9278688525
A18: 1953-06-19 | B18: 3.11 | C18: =B18-B17 -> 0.06 | D18: =ABS(C18) -> 0.06 | E18: 0.06170422535 | F18: =LN(B18/B17) -> 0.01948113557 | G18: =IF(F18=0,0.00065,ABS(F18)) -> 0.01948113557 | H18: 0.02026684059 | I18: -3.47054746 | J18: 880.3284051 | K18: 91.85366231 | L18: 0.04534291977 | M18: =M17+0.5 -> 0.75 | N18: =N17+0.5 -> 0.5 | O18: 0 | R18: =LOGNORMDIST(M18,R$12,R$13)-LOGNORMDIST(M17,R$12,R$13) -> 1.812882005e-06 | T18: =T17+0.005 -> 0.0075 | U18: =U17+0.005 -> 0.005 | V18: 82 | W18: 0.1253521127 | X18: =2*( NORMDIST($T18,X$10,X$11,TRUE)-NORMDIST($T17,X$10,X$11,TRUE)) -> 0.08922630882 | Y18: =(($W18-X18)^2)/36.5 -> 3.575544396e-05 | Z18: =2*( NORMDIST($T18,Z$10,Z$11,TRUE)-NORMDIST($T17,Z$10,Z$11,TRUE)) -> 0.1082450085 | AA18: =(($W18-Z18)^2)/36.5 -> 8.017890759e-06 | AB18: =2*(1/(1+EXP(-AB$11*T18))-1/(1+EXP(-AB$11*T17))) -> 0.110238807 | AC18: =(($W18-AB18)^2)/36.5 -> 6.25786325e-06 | AD18: =((1/(1+EXP(-AD$11*T18)))^AD$9+1-(1-1/(1+EXP(-AD$11*T18)))^AD$9)-((1/(1+EXP(-AD$11*T17)))^AD$9+1-(1-1/(1+EXP(-AD$11*T17)))^AD$9) -> 0.1209290005 | AE18: =(($W18-AD18)^2)/36.5 -> 5.35997838e-07 | AF18: =2*(0.5*(2^AF$9-(2-(2/(1+EXP(-AF$11*T18)))^AF$9))/(2^AF$9-1)-0.5*(2^AF$9-(2-(2/(1+EXP(-AF$11*T17)))^AF$9))/(2^AF$9-1)) -> 0.1209336006 | AG18: =(($W18-AF18)^2)/36.5 -> 5.348835454e-07 | AH18: =2*(0.5*(2-(2/(EXP(AH$11*T18)+1))^AH$9)-0.5*(2-(2/(EXP(AH$11*T17)+1))^AH$9)) -> 0.1221665067 | AI18: =(($W18-AH18)^2)/36.5 -> 2.780297443e-07 | AJ18: =(($W18-AK18)^2)/36.5 -> 3.796934222e-07 | AK18: =(GAMMADIST(T18,AK$11,AK$12,TRUE)-GAMMADIST(T17,AK$11,AK$12,TRUE)) -> 0.1216293704 | AL18: =(1-GAMMADIST(1/T18,AL$11,1/AL$12,TRUE))-(1-GAMMADIST(1/T17,AL$11,1/AL$12,TRUE)) -> 0.1134125803 | AM18: =(($W18-AL18)^2)/36.5 -> 3.905546151e-06 | AN18: =(GAMMADIST($T18^AN$10,AN$11,AN$12^AN$10,TRUE)-GAMMADIST($T17^AN$10,AN$11,AN$12^AN$10,TRUE)) -> 0.00700294451 | AO18: =(($W18-AN18)^2)/36.5 -> 0.0003837404275 | AP18: =(1-GAMMADIST((1/T18)^AP$10,AP$11,(1/AP$12)^AP$10,TRUE))-(1-GAMMADIST((1/T17)^AP$10,AP$11,(1/AP$12)^AP$10,TRUE)) -> 0.1698800249 | AQ18: =(($W18-AP18)^2)/36.5 -> 5.432150605e-05 | AR18: 0.1242396374 | AS18: =(($W18-AR18)^2)/36.5 -> 3.390688261e-08 | AT18: =AT17+0.0075 -> -0.178285705 | AU18: =AU17+0.0075 -> -0.182035705 | AV18: 0 | AW18: 0 | AX18: 1.655213966e-05 | AY18: =IF(AT18 <$F$734,0.5*(1-GAMMADIST(ABS(AT18-$F$734),AK$11,AK$12,TRUE))-0.5*(1-GAMMADIST(ABS(AT17-$F$734),AK$11,AK$12,TRUE)),0.5*(GAMMADIST(ABS(AT18-$F$734),AK$11,AK$12,TRUE))-0.5*( GAMMADIST(ABS(AT17-$F$734),AK$11,AK$12,TRUE))) -> 0.0005882147956 | BA18: =B18/B17 -> 1.019672131 | BB18: 0.836703339 | BC18: =EXP(AU18) -> 0.8335715772 | BD18: 0 | BE18: 0 | BF18: 0.01378148401 | BG18: 0.01378148401 | BH18: =((BE18-BF18)^2)/102 -> 1.862051977e-06 | BJ18: =1/BA18 -> 0.9807073955
A19: 1953-07-19 | B19: 2.93 | C19: -0.18 | D19: 0.18 | E19: 0.1782957746 | F19: =LN(B19/B18) -> -0.05962030316 | G19: 0.05962030316 | H19: 0.05883459814 | I19: -3.530167763 | J19: 1235.694768 | K19: 115.1527035 | L19: 0.08025814204 | M19: 1.25 | N19: 1 | O19: 0 | P19: =O19/711 -> 0 | R19: 0.0002681299606 | T19: 0.0125 | U19: =U18+0.005 -> 0.01 | V19: 89 | W19: 0.09014084507 | X19: =2*( NORMDIST($T19,X$10,X$11,TRUE)-NORMDIST($T18,X$10,X$11,TRUE)) -> 0.0875472288 | Y19: =(($W19-X19)^2)/36.5 -> 1.842971332e-07 | Z19: =2*( NORMDIST(T19,Z$10,Z$11,TRUE)-NORMDIST(T18,Z$10,Z$11,TRUE)) -> 0.1052424954 | AA19: 6.248214909e-06 | AB19: =2*(1/(1+EXP(-AB$11*T19))-1/(1+EXP(-AB$11*T18))) -> 0.1062391512 | AC19: 7.100149552e-06 | AD19: =((1/(1+EXP(-AD$11*T19)))^AD$9+1-(1-1/(1+EXP(-AD$11*T19)))^AD$9)-((1/(1+EXP(-AD$11*T18)))^AD$9+1-(1-1/(1+EXP(-AD$11*T18)))^AD$9) -> 0.1081065872 | AE19: 8.842955936e-06 | AF19: =2*(0.5*(2^AF$9-(2-(2/(1+EXP(-AF$11*T19)))^AF$9))/(2^AF$9-1)-0.5*(2^AF$9-(2-(2/(1+EXP(-AF$11*T18)))^AF$9))/(2^AF$9-1)) -> 0.10679895 | AG19: 7.602533181e-06 | AH19: =2*(0.5*(2-(2/(EXP(AH$11*T19)+1))^AH$9)-0.5*(2-(2/(EXP(AH$11*T18)+1))^AH$9)) -> 0.1066516787 | AI19: 7.46870208e-06 | AJ19: =(($W19-AK19)^2)/36.5 -> 7.876064087e-06 | AK19: =(GAMMADIST(T19,AK$11,AK$12,TRUE)-GAMMADIST(T18,AK$11,AK$12,TRUE)) -> 0.1070959723 | AL19: =(1-GAMMADIST(1/T19,AL$11,1/AL$12,TRUE))-(1-GAMMADIST(1/T18,AL$11,1/AL$12,TRUE)) -> 0.1201839129 | AM19: 2.472838156e-05 | AN19: =(GAMMADIST($T19^AN$10,AN$11,AN$12^AN$10,TRUE)-GAMMADIST($T18^AN$10,AN$11,AN$12^AN$10,TRUE)) -> 0.04136748491 | AO19: 6.517371676e-05 | AP19: =(1-GAMMADIST((1/T19)^AP$10,AP$11,(1/AP$12)^AP$10,TRUE))-(1-GAMMADIST((1/T18)^AP$10,AP$11,(1/AP$12)^AP$10,TRUE)) -> 0.1145430445 | AQ19: 1.631417361e-05 | AR19: 0.09403825101 | AS19: 4.16158166e-07 | AT19: -0.170785705 | AU19: =AU18+0.0075 -> -0.174535705 | AV19: 0 | AW19: 0 | AX19: 3.246132625e-05 | AY19: 0.0007311498858 | BA19: 0.9421221865 | BB19: 0.8430022053 | BC19: 0.8398468669 | BD19: 0 | BE19: 0 | BF19: 0.01348564361 | BG19: 0.01348564361 | BH19: 1.782966506e-06 | BJ19: 1.061433447
A20: 1953-08-19 | B20: 2.95 | C20: 0.02 | D20: 0.02 | E20: 0.02170422535 | F20: 0.006802747323 | G20: 0.006802747323 | H20: 0.00758845234 | I20: -3.523365016 | J20: 1191.113898 | K20: 112.366157 | L20: 0.07539772021 | M20: 1.75 | N20: 1.5 | O20: 1 | P20: =O20/711 -> 0.001406469761 | R20: 0.003319572981 | T20: 0.0175 | U20: 0.015 | V20: 64 | W20: 0.08591549296 | X20: 0.08481868418 | Y20: 3.295861614e-08 | Z20: 0.1004222391 | AA20: 5.765635145e-06 | AB20: 0.09999094351 | AC20: 5.427898857e-06 | AD20: 0.09390174331 | AE20: 1.747402596e-06 | AF20: 0.09401497911 | AG20: 1.797306188e-06 | AH20: 0.09303991667 | AI20: 1.390614059e-06 | AJ20: 1.593427219e-06 | AK20: 0.09354176947 | AL20: 0.09028953288 | AM20: 5.241705547e-07 | AN20: 0.09047041379 | AO20: 5.68419283e-07 | AP20: 0.08257238259 | AQ20: 3.062023821e-07 | AR20: 0.08478551905 | AS20: 3.498194629e-08 | AT20: -0.163285705 | AU20: -0.167035705 | AV20: 0 | AW20: 0 | AX20: 6.187544004e-05 | AY20: 0.0009087752703 | BA20: 1.006825939 | BB20: 0.8493484906 | BC20: 0.8461693983 | BD20: 0 | BE20: 0 | BF20: 0.01319923089 | BG20: 0.01319923089 | BH20: 1.708036237e-06 | BJ20: 0.993220339
A21: 1953-09-19 | B21: 2.87 | C21: -0.08 | D21: 0.08 | E21: 0.07829577465 | F21: -0.02749314058 | G21: 0.02749314058 | H21: 0.02670743556 | I21: -3.550858156 | J21: 1377.865537 | K21: 123.8239228 | L21: 0.09667461189 | M21: 2.25 | N21: 2 | O21: 9 | P21: 0.01265822785 | R21: 0.01375296912 | T21: 0.0225 | U21: 0.02 | V21: 61 | W21: 0.08591549296 | X21: 0.08114099121 | Y21: 6.245443008e-07 | Z21: 0.09404250032 | AA21: 1.809541059e-06 | AB21: 0.09203654127 | AC21: 1.026499519e-06 | AD21: 0.08107573755 | AE21: 6.417323942e-07 | AF21: 0.08250498838 | AG21: 3.186723689e-07 | AH21: 0.08110675875 | AI21: 6.335321833e-07 | AJ21: 5.460635815e-07 | AK21: 0.08145104218 | AL21: 0.06802589214 | AM21: 8.768159384e-06 | AN21: 0.1271095693 | AO21: 4.649183359e-05 | AP21: 0.06290011065 | AQ21: 1.451254309e-05 | AR21: 0.08089247992 | AS21: 6.912509588e-07 | AT21: -0.155785705 | AU21: -0.159535705 | AV21: 0 | AW21: 0 | AX21: 0.0001146331739 | AY21: 0.001129494841 | BA21: 0.9728813559 | BB21: 0.8557425521 | BC21: 0.8525395269 | BD21: 0 | BE21: 0 | BF21: 0.01292184943 | BG21: 0.01292184943 | BH21: 1.637001888e-06 | BJ21: 1.027874564
A22: 1953-10-19 | B22: 2.66 | C22: -0.21 | D22: 0.21 | E22: 0.2082957746 | F22: -0.07598590698 | G22: 0.07598590698 | H22: 0.07520020196 | I22: -3.626844063 | J22: 1987.429914 | K22: 158.0742809 | L22: 0.1829455711 | M22: 2.75 | N22: 2.5 | O22: 25 | P22: 0.03516174402 | R22: 0.03194865954 | T22: 0.0275 | U22: 0.025 | V22: 61 | W22: 0.05915492958 | X22: 0.07664586621 | Y22: 8.381722312e-06 | Z22: 0.08643187535 | AA22: 2.038443207e-05 | AB22: 0.08299375048 | AC22: 1.55695721e-05 | AD22: 0.07008762423 | AE22: 3.274624994e-06 | AF22: 0.07218946217 | AG22: 4.65476822e-06 | AH22: 0.07065305583 | AI22: 3.622107048e-06 | AJ22: 3.718616021e-06 | AK22: 0.07080522935 | AL22: 0.05289130541 | AM22: 1.074876375e-06 | AN22: 0.1405530516 | AO22: 0.0001815247746 | AP22: 0.04980799641 | AQ22: 2.393566016e-06 | AR22: 0.07523600308 | AS22: 7.084956848e-06 | AT22: -0.148285705 | AU22: -0.152035705 | AV22: 1 | AW22: 0.001408450704 | AX22: 0.0002064155256 | AY22: 0.00140374268 | BA22: 0.9268292683 | BB22: 0.8621847492 | BC22: 0.8589576111 | BD22: 1 | BE22: 0.001408450704 | BF22: 0.0126531234 | BG22: 0.0126531234 | BH22: 1.239633962e-06 | BJ22: 1.078947368
A23: 1953-11-19 | B23: 2.68 | C23: 0.02 | D23: 0.02 | E23: 0.02170422535 | F23: 0.007490671729 | G23: 0.007490671729 | H23: 0.008276376747 | I23: -3.619353391 | J23: 1921.111117 | K23: 154.5378942 | L23: 0.1723003362 | M23: 3.25 | N23: 3 | O23: 38 | P23: 0.05344585091 | R23: 0.05299781379 | T23: 0.0325 | U23: 0.03 | V23: 42 | W23: 0.07887323944 | X23: 0.07148860371 | Y23: 1.494050542e-06 | Z23: 0.07796132385 | AA23: 2.278328867e-08 | AB23: 0.07346555766 | AC23: 8.01178689e-07 | AD23: 0.06071667494 | AE23: 9.031803676e-06 | AF23: 0.06298642844 | AG23: 6.91481544e-06 | AH23: 0.06150226293 | AI23: 8.267145886e-06 | AJ23: 8.282010967e-06 | AK23: 0.06148665264 | AL23: 0.04237229647 | AM23: 3.650188597e-05 | AN23: 0.1342223009 | AO23: 8.393201656e-05 | AP23: 0.04057838939 | AQ23: 4.017796e-05 | AR23: 0.06681869527 | AS23: 3.981151645e-06 | AT23: -0.140785705 | AU23: -0.144535705 | AV23: 1 | AW23: 0.001408450704 | AX23: 0.000361255507 | AY23: 0.001744471028 | BA23: 1.007518797 | BB23: 0.8686754445 | BC23: 0.8654240119 | BD23: 1 | BE23: 0.001408450704 | BF23: 0.01239269637 | BG23: 0.01239269637 | BH23: 1.182878949e-06 | BJ23: 0.9925373134
A24: 1953-12-19 | B24: 2.59 | C24: -0.09 | D24: 0.09 | E24: 0.08829577465 | F24: -0.03415891881 | G24: 0.03415891881 | H24: 0.03337321379 | I24: -3.65351231 | J24: 2234.769249 | K24: 170.931377 | L24: 0.2254021508 | M24: 3.75 | N24: 3.5 | O24: 40 | P24: 0.05625879044 | R24: 0.07121591118 | T24: 0.0375 | U24: 0.035 | V24: 56 | W24: 0.05633802817 | X24: 0.0658391995 | Y24: 2.473212512e-06 | Z24: 0.06901444055 | AA24: 4.402504957e-06 | AB24: 0.06397226511 | AC24: 1.596755444e-06 | AD24: 0.05267768677 | AE24: 3.670712106e-07 | AF24: 0.0548122665 | AG24: 6.377941574e-08 | AH24: 0.05349800264 | AI24: 2.209793157e-07 | AJ24: 2.435859355e-07 | AK24: 0.05335626918 | AL24: 0.03480360243 | AM24: 1.270497239e-05 | AN24: 0.116292148 | AO24: 9.847935584e-05 | AP24: 0.03378627392 | AQ24: 1.393374301e-05 | AR24: 0.05690554925 | AS24: 8.824114484e-09 | AT24: -0.133285705 | AU24: -0.137035705 | AV24: 0 | AW24: 0 | AX24: 0.0006145068277 | AY24: 0.002167754626 | BA24: 0.9664179104 | BB24: 0.8752150031 | BC24: 0.871939093 | BD24: 0 | BE24: 0 | BF24: 0.01214023002 | BG24: 0.01214023002 | BH24: 1.444952793e-06 | BJ24: 1.034749035
A25: 1954-01-19 | B25: 2.48 | C25: -0.11 | D25: 0.11 | E25: 0.1082957746 | F25: -0.04339931553 | G25: 0.04339931553 | H25: 0.04261361052 | I25: -3.696911626 | J25: 2674.997182 | K25: 192.7002239 | L25: 0.3119125663 | M25: 4.25 | N25: 4 | O25: 104 | P25: 0.1462728551 | R25: 0.08326517804 | T25: 0.0425 | U25: 0.04 | V25: 40 | W25: 0.04507042254 | X25: 0.05987312385 | Y25: 6.003286749e-06 | Z25: 0.05995925571 | AA25: 6.073352143e-06 | AB25: 0.05491412649 | AC25: 2.654753632e-06 | AD25: 0.04574264035 | AE25: 1.238018611e-08 | AF25: 0.04758281192 | AG25: 1.729342576e-07 | AH25: 0.04650187544 | AI25: 5.613855906e-08 | AJ25: 3.985395526e-08 | AK25: 0.04627651928 | AL25: 0.02917800147 | AM25: 6.919699926e-06 | AN25: 0.09410560159 | AO25: 6.587530916e-05 | AP25: 0.0286197188 | AQ25: 7.414401459e-06 | AR25: 0.04696975958 | AS25: 9.883510204e-08 | AT25: -0.125785705 | AU25: -0.129535705 | AV25: 1 | AW25: 0.001408450704 | AX25: 0.001015965856 | AY25: 0.002693538524 | BA25: 0.9575289575 | BB25: 0.8818037927 | BC25: 0.8785032209 | BD25: 0 | BE25: 0.001408450704 | BF25: 0.01189540313 | BG25: 0.01189540313 | BH25: 1.078197756e-06 | BJ25: 1.044354839
A26: 1954-02-19 | B26: 2.47 | C26: -0.01 | D26: 0.01 | E26: 0.008295774648 | F26: -0.004040409537 | G26: 0.004040409537 | H26: 0.00325470452 | I26: -3.700952035 | J26: 2718.36512 | K26: 194.7773828 | L26: 0.3212079313 | M26: 4.75 | N26: 4.5 | O26: 60 | P26: 0.08438818565 | R26: 0.08845950827 | T26: 0.0475 | U26: 0.045 | V26: 32 | W26: 0.03098591549 | X26: 0.0537624364 | Y26: 1.42128741e-05 | Z26: 0.05112437195 | AA26: 1.111116242e-05 | AB26: 0.04656241981 | AC26: 6.6473284e-06 | AD26: 0.03973863248 | AE26: 2.098905605e-06 | AF26: 0.04121460109 | AG26: 2.866466e-06 | AH26: 0.04039149377 | AI26: 2.423695965e-06 | AJ26: 2.285903109e-06 | AK26: 0.04012021697 | AL26: 0.02487775504 | AM26: 1.022181484e-06 | AN26: 0.07244254505 | AO26: 4.708635984e-05 | AP26: 0.02458498951 | AQ26: 1.122516531e-06 | AR26: 0.03799533169 | AS26: 1.346079874e-06 | AT26: -0.118285705 | AU26: -0.122035705 | AV26: 4 | AW26: 0.005633802817 | AX26: 0.001632569645 | AY26: 0.003346563776 | BA26: 0.9959677419 | BB26: 0.888442184 | BC26: 0.8851167648 | BD26: 4 | BE26: 0.005633802817 | BF26: 0.01165791051 | BG26: 0.01165791051 | BH26: 3.557830736e-07 | BJ26: 1.004048583
A27: 1954-03-19 | B27: 2.37 | C27: -0.1 | D27: 0.1 | E27: 0.09829577465 | F27: -0.04132819549 | G27: 0.04132819549 | H27: 0.04054249048 | I27: -3.742280231 | J27: 3185.236273 | K27: 216.4849793 | L27: 0.4303018421 | M27: 5.25 | N27: 5 | O27: 39 | P27: 0.05485232068 | R27: 0.08779299641 | T27: 0.0525 | U27: 0.05 | V27: 22 | W27: 0.03098591549 | X27: 0.04766785537 | Y27: 7.624304605e-06 | Z27: 0.042781423 | AA27: 3.811890339e-06 | AB27: 0.03907096794 | AC27: 1.790906113e-06 | AD27: 0.03453049244 | AE27: 3.442198822e-07 | AF27: 0.03562611315 | AG27: 5.899023105e-07 | AH27: 0.03505871864 | AI27: 4.544582327e-07 | AJ27: 3.92728476e-07 | AK27: 0.03477202027 | AL27: 0.02151139407 | AM27: 2.459357704e-06 | AN27: 0.05370519417 | AO27: 1.414152393e-05 | AP27: 0.02136618629 | AQ27: 2.535320275e-06 | AR27: 0.03042801898 | AS27: 8.527356794e-09 | AT27: -0.110785705 | AU27: -0.114535705 | AV27: 1 | AW27: 0.001408450704 | AX27: 0.002549790894 | AY27: 0.004157504658 | BA27: 0.95951417 | BB27: 0.8951305504 | BC27: 0.8917800968 | BD27: 1 | BE27: 0.001408450704 | BF27: 0.01142746207 | BG27: 0.01142746207 | BH27: 9.841234183e-07 | BJ27: 1.042194093
A28: 1954-04-19 | B28: 2.29 | C28: -0.08 | D28: 0.08 | E28: 0.07829577465 | F28: -0.03433813758 | G28: 0.03433813758 | H28: 0.03355243256 | I28: -3.776618368 | J28: 3605.195457 | K28: 235.1179989 | L28: 0.542962398 | M28: 5.75 | N28: 5.5 | O28: 37 | P28: 0.05203938115 | R28: 0.082917173 | T28: 0.0575 | U28: 0.055 | V28: 22 | W28: 0.02253521127 | X28: 0.0417322625 | Y28: 1.0096624e-05 | Z28: 0.03513483752 | AA28: 4.349331004e-06 | AB28: 0.032498706 | AC28: 2.719759652e-06 | AD28: 0.03000819848 | AE28: 1.530014738e-06 | AF28: 0.03073889719 | AG28: 1.843848294e-06 | AH28: 0.03040807935 | AI28: 1.698138405e-06 | AJ28: 1.579908768e-06 | AK28: 0.03012906866 | AL28: 0.01882221601 | AM28: 3.777077754e-07 | AN28: 0.03867258657 | AO28: 7.134654293e-06 | AP28: 0.01875214143 | AQ28: 3.920991065e-07 | AR28: 0.02433412285 | AS28: 8.865980466e-08 | AT28: -0.103285705 | AU28: -0.107035705 | AV28: 5 | AW28: 0.007042253521 | AX28: 0.003870594679 | AY28: 0.005164385293 | BA28: 0.9662447257 | BB28: 0.9018692681 | BC28: 0.8984935917 | BD28: 4 | BE28: 0.007042253521 | BF28: 0.0112037819 | BG28: 0.0112037819 | BH28: 1.69787436e-07 | BJ28: 1.034934498
A29: 1954-05-19 | B29: 2.37 | C29: 0.08 | D29: 0.08 | E29: 0.08170422535 | F29: 0.03433813758 | G29: 0.03433813758 | H29: 0.0351238426 | I29: -3.742280231 | J29: 3185.236273 | K29: 216.4849793 | L29: 0.4303018421 | M29: 6.25 | N29: 6 | O29: 49 | P29: 0.06891701828 | R29: 0.07548319413 | T29: 0.0625 | U29: 0.06 | V29: 16 | W29: 0.02112676056 | X29: 0.03607595972 | Y29: 6.122700148e-06 | Z29: 0.0283188851 | AA29: 1.417168641e-06 | AB29: 0.02683547278 | AC29: 8.928601406e-07 | AD29: 0.02607950585 | AE29: 6.720461879e-07 | AF29: 0.02647850941 | AG29: 7.846908415e-07 | AH29: 0.02635535865 | AI29: 7.489928219e-07 | AJ29: 6.777730251e-07 | AK29: 0.02610056348 | AL29: 0.01663646854 | AM29: 5.524033554e-07 | AN29: 0.02721697513 | AO29: 1.016183932e-06 | AP29: 0.01659711112 | AQ29: 5.621294271e-07 | AR29: 0.01957294239 | AS29: 6.614660048e-08 | AT29: -0.09578570502 | AU29: -0.09953570502 | AV29: 1 | AW29: 0.001408450704 | AX29: 0.005710723591 | AY29: 0.006414305895 | BA29: 1.034934498 | BB29: 0.9086587162 | BC29: 0.9052576271 | BD29: 1 | BE29: 0.001408450704 | BF29: 0.0109866075 | BG29: 0.0109866075 | BH29: 8.994224281e-07 | BJ29: 0.9662447257
A30: 1954-06-19 | B30: 2.38 | C30: 0.01 | D30: 0.01 | E30: 0.01170422535 | F30: 0.004210532536 | G30: 0.004210532536 | H30: 0.004996237554 | I30: -3.738069698 | J30: 3135.736175 | K30: 214.2362761 | L30: 0.4179412275 | M30: 6.75 | N30: 6.5 | O30: 46 | P30: 0.064697609 | R30: 0.06683817737 | T30: 0.0675 | U30: 0.065 | V30: 15 | W30: 0.02253521127 | X30: 0.03079381529 | Y30: 1.868617547e-06 | Z30: 0.02240112487 | AA30: 4.925798118e-10 | AB30: 0.0220259291 | AC30: 7.105981678e-09 | AD30: 0.02266569921 | AE30: 4.664959992e-10 | AF30: 0.02277522141 | AG30: 1.578215635e-09 | AH30: 0.02282632733 | AI30: 2.32187837e-09 | AJ30: 1.401959979e-10 | AK30: 0.02260674555 | AL30: 0.0148331727 | AM30: 1.625243784e-06 | AN30: 0.01880698544 | AO30: 3.808128166e-07 | AP30: 0.0147976517 | AQ30: 1.640269262e-06 | AR30: 0.0159211219 | AS30: 1.19852543e-06 | AT30: -0.08828570502 | AU30: -0.09203570502 | AV30: 1 | AW30: 0.001408450704 | AX30: 0.008189265145 | AY30: 0.007965578495 | BA30: 1.004219409 | BB30: 0.9154992766 | BC30: 0.9120725834 | BD30: 1 | BE30: 0.001408450704 | BF30: 0.01077568896 | BG30: 0.01077568896 | BH30: 8.602465934e-07 | BJ30: 0.9957983193
A31: 1954-07-19 | B31: 2.3 | C31: -0.08 | D31: 0.08 | E31: 0.07829577465 | F31: -0.03419136475 | G31: 0.03419136475 | H31: 0.03340565973 | I31: -3.772261063 | J31: 3550.306308 | K31: 232.7254522 | L31: 0.5274346527 | M31: 7.25 | N31: 7 | O31: 37 | P31: 0.05203938115 | R31: 0.05794843033 | T31: 0.0725 | U31: 0.07 | V31: 16 | W31: 0.01549295775 | X31: 0.02595426596 | Y31: 2.998327935e-06 | Z31: 0.01739077635 | AA31: 9.86771359e-08 | AB31: 0.01798908646 | AC31: 1.707029746e-07 | AD31: 0.01969897429 | AE31: 4.846732917e-07 | AF31: 0.01956449138 | AG31: 4.541749622e-07 | AH31: 0.01975561321 | AI31: 4.978145646e-07 | AJ31: 4.57122246e-07 | AK31: 0.01957768075 | AL31: 0.0133259524 | AM31: 1.286551286e-07 | AN31: 0.01280426879 | AO31: 1.980561185e-07 | AP31: 0.01327806983 | AQ31: 1.344035205e-07 | AR31: 0.01314530429 | AS31: 1.509993632e-07 | AT31: -0.08078570502 | AU31: -0.08453570502 | AV31: 4 | AW31: 0.005633802817 | AX31: 0.01141403244 | AY31: 0.009890317187 | BA31: 0.9663865546 | BB31: 0.9223913341 | BC31: 0.9189388441 | BD31: 4 | BE31: 0.005633802817 | BF31: 0.01057078825 | BG31: 0.01057078825 | BH31: 2.3895907e-07 | BJ31: 1.034782609
A32: 1954-08-19 | B32: 2.36 | C32: 0.06 | D32: 0.06 | E32: 0.06170422535 | F32: 0.0257524961 | G32: 0.0257524961 | H32: 0.02653820112 | I32: -3.746508567 | J32: 3235.385829 | K32: 218.7513386 | L32: 0.4430198031 | M32: 7.75 | N32: 7.5 | O32: 49 | P32: 0.06891701828 | R32: 0.0494352436 | T32: 0.0775 | U32: 0.075 | V32: 11 | W32: 0.002816901408 | X32: 0.02159999461 | Y32: 9.665879186e-06 | Z32: 0.01325023482 | AA32: 2.982313593e-06 | AB32: 0.01463278994 | AC32: 3.825074571e-06 | AD32: 0.01712065007 | AE32: 5.605403444e-06 | AF32: 0.01678721275 | AG32: 5.347112302e-06 | AH32: 0.01708569158 | AI32: 5.578037614e-06 | AJ32: 5.474205905e-06 | AK32: 0.01695226541 | AL32: 0.01205177888 | AM32: 2.336519503e-06 | AN32: 0.008612289282 | AO32: 9.201786467e-07 | AP32: 0.01198237455 | AQ32: 2.301531449e-06 | AR32: 0.01103803052 | AS32: 1.851697642e-06 | AT32: -0.07328570502 | AU32: -0.07703570502 | AV32: 2 | AW32: 0.002816901408 | AX32: 0.01546228515 | AY32: 0.01227763277 | BA32: 1.026086957 | BB32: 0.9293352763 | BC32: 0.9258567953 | BD32: 2 | BE32: 0.002816901408 | BF32: 0.01037167856 | BG32: 0.01037167856 | BH32: 5.595554687e-07 | BJ32: 0.9745762712
A33: 1954-09-19 | B33: 2.38 | C33: 0.02 | D33: 0.02 | E33: 0.02170422535 | F33: 0.008438868646 | G33: 0.008438868646 | H33: 0.009224573663 | I33: -3.738069698 | J33: 3135.736175 | K33: 214.2362761 | L33: 0.4179412275 | M33: 8.25 | N33: 8 | O33: 44 | P33: 0.06188466948 | R33: 0.04165076792 | T33: 0.0825 | U33: 0.08 | V33: 2 | W33: 0.00985915493 | X33: 0.01774999256 | Y33: 1.705899139e-06 | Z33: 0.009907946098 | AA33: 6.522131763e-11 | AB33: 0.01186357462 | AC33: 1.100739264e-07 | AD33: 0.01487982604 | AE33: 6.906065324e-07 | AF33: 0.01438976962 | AG33: 5.623690272e-07 | AH33: 0.01476598454 | AI33: 6.596432018e-07 | AJ33: 6.360104106e-07 | AK33: 0.01467728527 | AL33: 0.01096373481 | AM33: 3.342730699e-08 | AN33: 0.005734998211 | AO33: 4.659909216e-07 | AP33: 0.01086799795 | AQ33: 2.788395193e-08 | AR33: 0.00942966116 | AS33: 5.053832814e-09 | AT33: -0.06578570502 | AU33: -0.06953570502 | AV33: 14 | AW33: 0.01971830986 | AX33: 0.02035863631 | AY33: 0.01523745121 | BA33: 1.008474576 | BB33: 0.9363314939 | BC33: 0.9328268262 | BD33: 14 | BE33: 0.01971830986 | BF33: 0.01017814367 | BG33: 0.01017814367 | BH33: 8.923016748e-07 | BJ33: 0.9915966387
A34: 1954-10-19 | B34: 2.43 | C34: 0.05 | D34: 0.05 | E34: 0.05170422535 | F34: 0.02079076967 | G34: 0.02079076967 | H34: 0.02157647469 | I34: -3.717278929 | J34: 2897.743303 | K34: 203.2543928 | L34: 0.3611561145 | M34: 8.75 | N34: 8.5 | O34: 25 | P34: 0.03516174402 | R34: 0.03475663355 | T34: 0.0875 | U34: 0.085 | V34: 7 | W34: 0.002816901408 | X34: 0.01440264801 | Y34: 3.677521216e-06 | Z34: 0.007271083697 | AA34: 5.435545167e-07 | AB34: 0.009592782131 | AC34: 1.257878344e-06 | AD34: 0.01293230348 | AE34: 2.803324905e-06 | AF34: 0.01232393499 | AG34: 2.476265413e-06 | AH34: 0.0127520585 | AI34: 2.704310863e-06 | AJ34: 2.679484333e-06 | AK34: 0.01270634923 | AL34: 0.01002629294 | AM34: 1.423981541e-06 | AN34: 0.003787351152 | AO34: 2.580199189e-08 | AP34: 0.00990206833 | AQ34: 1.375331241e-06 | AR34: 0.008188640873 | AS34: 7.905639693e-07 | AT34: -0.05828570502 | AU34: -0.06203570502 | AV34: 14 | AW34: 0.01971830986 | AX34: 0.02605338418 | AY34: 0.01890504368 | BA34: 1.021008403 | BB34: 0.9433803804 | BC34: 0.9398493289 | BD34: 14 | BE34: 0.01971830986 | BF34: 0.00998997737 | BG34: 0.00998997737 | BH34: 9.278475787e-07 | BJ34: 0.9794238683
A35: 1954-11-19 | B35: 2.48 | C35: 0.05 | D35: 0.05 | E35: 0.05170422535 | F35: 0.02036730282 | G35: 0.02036730282 | H35: 0.02115300784 | I35: -3.696911626 | J35: 2674.997182 | K35: 192.7002239 | L35: 0.3119125663 | M35: 9.25 | N35: 9 | O35: 28 | P35: 0.03938115331 | R35: 0.0287899654 | T35: 0.0925 | U35: 0.09 | V35: 2 | W35: 0.004225352113 | X35: 0.01153947781 | Y35: 1.465655745e-06 | Z35: 0.005236849504 | AA35: 2.803087598e-08 | AB35: 0.007739909177 | AC35: 3.384140099e-07 | AD35: 0.01123968447 | AE35: 1.347968724e-06 | AF35: 0.01054664971 | AG35: 1.094761736e-06 | AH35: 0.0110049096 | AI35: 1.259243828e-06 | AJ35: 1.257094558e-06 | AK35: 0.01099912148 | AL35: 0.009212128552 | AM35: 6.813134044e-07 | AN35: 0.002483825968 | AO35: 8.309351543e-08 | AP35: 0.009059124668 | AQ35: 6.401467704e-07 | AR35: 0.007216635964 | AS35: 2.451446324e-07 | AT35: -0.05078570502 | AU35: -0.05453570502 | AV35: 16 | AW35: 0.02253521127 | AX35: 0.03240560077 | AY35: 0.02344643923 | BA35: 1.020576132 | BB35: 0.9504823323 | BC35: 0.9469246983 | BD35: 16 | BE35: 0.02253521127 | BF35: 0.009806982871 | BG35: 0.009806982871 | BH35: 1.588311746e-06 | BJ35: 0.9798387097
A36: 1954-12-19 | B36: 2.51 | C36: 0.03 | D36: 0.03 | E36: 0.03170422535 | F36: 0.01202419297 | G36: 0.01202419297 | H36: 0.01280989798 | I36: -3.684887433 | J36: 2548.337323 | K36: 186.5683382 | L36: 0.2855653234 | M36: 9.75 | N36: 9.5 | O36: 6 | P36: 0.008438818565 | R36: 0.02371302879 | T36: 0.0975 | U36: 0.095 | V36: 3 | W36: 0.004225352113 | X36: 0.009129134411 | Y36: 6.588241324e-07 | Z36: 0.003701659575 | AA36: 7.513804756e-09 | AB36: 0.006234051487 | AC36: 1.105444706e-07 | AD36: 0.00976860219 | AE36: 8.418526418e-07 | AF36: 0.009019717499 | AG36: 6.297517661e-07 | AH36: 0.009490328148 | AI36: 7.594513055e-07 | AJ36: 7.681878338e-07 | AK36: 0.009520525003 | AL36: 0.008499931031 | AM36: 5.006034227e-07 | AN36: 0.001619485157 | AO36: 1.860422627e-07 | AP36: 0.008318918589 | AQ36: 4.591037396e-07 | AR36: 0.006441645634 | AS36: 1.345741636e-07 | AT36: -0.04328570502 | AU36: -0.04703570502 | AV36: 22 | AW36: 0.03098591549 | AX36: 0.03917567637 | AY36: 0.02906421371 | BA36: 1.012096774 | BB36: 0.9576377491 | BC36: 0.9540533325 | BD36: 22 | BE36: 0.03098591549 | BF36: 0.00962897234 | BG36: 0.00962897234 | BH36: 4.471755106e-06 | BJ36: 0.9880478088
A37: 1955-01-19 | B37: 2.61 | C37: 0.1 | D37: 0.1 | E37: 0.1017042254 | F37: 0.03906746819 | G37: 0.03906746819 | H37: 0.03985317321 | I37: -3.645819965 | J37: 2161.620686 | K37: 167.1807715 | L37: 0.212391124 | M37: 10.25 | N37: 10 | O37: 6 | P37: 0.008438818565 | R37: 0.01944788555 | T37: 0.1025 | U37: 0.1 | V37: 3 | W37: 0.005633802817 | X37: 0.007131365253 | Y37: 6.144365071e-08 | Z37: 0.002567901044 | AA37: 2.57527498e-07 | AB37: 0.005014126338 | AC37: 1.052051886e-08 | AD37: 0.008490060667 | AE37: 2.235125728e-07 | AF37: 0.007709446953 | AG37: 1.180355775e-07 | AH37: 0.008178333806 | AI37: 1.773873412e-07 | AJ37: 1.861068837e-07 | AK37: 0.008240122302 | AL37: 0.007872870209 | AM37: 1.37354049e-07 | AN37: 0.001050763181 | AO37: 5.754589672e-07 | AP37: 0.007665160703 | AQ37: 1.130524619e-07 | AR37: 0.005811715974 | AS37: 8.672079851e-10 | AT37: -0.03578570502 | AU37: -0.03953570502 | AV37: 27 | AW37: 0.03802816901 | AX37: 0.04603132092 | AY37: 0.03600360232 | BA37: 1.039840637 | BB37: 0.9648470332 | BC37: 0.9612356324 | BD37: 27 | BE37: 0.03802816901 | BF37: 0.00945576639 | BG37: 0.00945576639 | BH37: 8.003746978e-06 | BJ37: 0.9616858238
A38: 1955-02-19 | B38: 2.65 | C38: 0.04 | D38: 0.04 | E38: 0.04170422535 | F38: 0.01520941866 | G38: 0.01520941866 | H38: 0.01599512368 | I38: -3.630610546 | J38: 2021.297989 | K38: 159.8650628 | L38: 0.1885018662 | M38: 10.75 | N38: 10.5 | O38: 13 | P38: 0.01828410689 | R38: 0.01589915193 | T38: 0.1075 | U38: 0.105 | V38: 4 | W38: 0.004225352113 | X38: 0.00550066748 | Y38: 4.455970648e-08 | Z38: 0.00174829819 | AA38: 1.681040037e-07 | AB38: 0.004028373752 | AC38: 1.063026703e-09 | AD38: 0.007378858685 | AE38: 2.72454896e-07 | AF38: 0.006586265965 | AG38: 1.527099786e-07 | AH38: 0.007042674084 | AI38: 2.174603587e-07 | AJ38: 2.313839282e-07 | AK38: 0.007131468659 | AL38: 0.007317502374 | AM38: 2.619559792e-07 | AN38: 0.0006789523362 | AO38: 3.445740103e-07 | AP38: 0.0070848705 | AQ38: 2.240231619e-07 | AR38: 0.005289844541 | AS38: 3.104504468e-08 | AT38: -0.02828570502 | AU38: -0.03203570502 | AV38: 34 | AW38: 0.04788732394 | AX38: 0.05256914261 | AY38: 0.04455611824 | BA38: 1.01532567 | BB38: 0.9721105902 | BC38: 0.9684720022 | BD38: 34 | BE38: 0.04788732394 | BF38: 0.009287193632 | BG38: 0.009287193632 | BH38: 1.460754961e-05 | BJ38: 0.9849056604
A39: 1955-03-19 | B39: 2.68 | C39: 0.03 | D39: 0.03 | E39: 0.03170422535 | F39: 0.01125715452 | G39: 0.01125715452 | H39: 0.01204285954 | I39: -3.619353391 | J39: 1921.111117 | K39: 154.5378942 | L39: 0.1723003362 | M39: 11.25 | N39: 11 | O39: 5 | P39: 0.007032348805 | R39: 0.01296806091 | T39: 0.1125 | U39: 0.11 | V39: 3 | W39: 0.001408450704 | X39: 0.004189456972 | Y39: 2.118902976e-07 | Z39: 0.001168175622 | AA39: 1.581701778e-09 | AB39: 0.003233480209 | AC39: 9.125295047e-08 | AD39: 0.006413093368 | AE39: 6.8620406e-07 | AF39: 0.005624328323 | AG39: 4.869486054e-07 | AH39: 0.0060603795 | AI39: 5.928888088e-07 | AJ39: 6.215839517e-07 | AK39: 0.006171623411 | AL39: 0.006822977211 | AM39: 8.032081449e-07 | AN39: 0.0004371805535 | AO39: 2.584563577e-08 | AP39: 0.006567332682 | AQ39: 7.291524182e-07 | AR39: 0.004849580141 | AS39: 3.244211453e-07 | AT39: -0.02078570502 | AU39: -0.02453570502 | AV39: 44 | AW39: 0.06197183099 | AX39: 0.05835107789 | AY39: 0.05505596726 | BA39: 1.011320755 | BB39: 0.9794288288 | BC39: 0.9757628487 | BD39: 44 | BE39: 0.06197183099 | BF39: 0.009123090254 | BG39: 0.009123090254 | BH39: 2.738224899e-05 | BJ39: 0.9888059701
A40: 1955-04-19 | B40: 2.75 | C40: 0.07 | D40: 0.07 | E40: 0.07170422535 | F40: 0.02578411716 | G40: 0.02578411716 | H40: 0.02656982217 | I40: -3.593569274 | J40: 1703.327574 | K40: 142.626027 | L40: 0.1395160174 | M40: 11.75 | N40: 11.5 | O40: 13 | P40: 0.01828410689 | R40: 0.01056052804 | T40: 0.1175 | U40: 0.115 | V40: 1 | W40: 0.004225352113 | X40: 0.003150646693 | Y40: 3.164360932e-08 | Z40: 0.0007660483261 | AA40: 3.278570599e-07 | AB40: 0.00259354833 | AC40: 7.295297493e-08 | AD40: 0.005573733088 | AE40: 4.981181523e-08 | AF40: 0.004801127181 | AG40: 9.082655612e-09 | AH40: 0.005211369332 | AI40: 2.663643717e-08 | AJ40: 3.408147313e-08 | AK40: 0.005340687833 | AL40: 0.006380454399 | AM40: 1.272456401e-07 | AN40: 0.0002806767425 | AO40: 4.263140761e-07 | AP40: 0.00610378683 | AQ40: 9.667169823e-08 | AR40: 0.004472071672 | AS40: 1.667686049e-09 | AT40: -0.01328570502 | AU40: -0.01703570502 | AV40: 49 | AW40: 0.06901408451 | AX40: 0.06295169291 | AY40: 0.06784305324 | BA40: 1.026119403 | BB40: 0.9868021604 | BC40: 0.9831085821 | BD40: 49 | BE40: 0.06901408451 | BF40: 0.008963299621 | BG40: 0.008963299621 | BH40: 3.535388986e-05 | BJ40: 0.9745454545
A41: 1955-05-19 | B41: 2.76 | C41: 0.01 | D41: 0.01 | E41: 0.01170422535 | F41: 0.003629768051 | G41: 0.003629768051 | H41: 0.004415473068 | I41: -3.589939506 | J41: 1673.967393 | K41: 140.9823232 | L41: 0.135349752 | M41: 12.25 | N41: 12 | O41: 5 | P41: 0.007032348805 | R41: 0.008591276229 | T41: 0.1225 | U41: 0.12 | V41: 3 | W41: 0.002816901408 | X41: 0.002339598326 | Y41: 6.24159542e-09 | Z41: 0.0004930143774 | AA41: 1.479575598e-07 | AB41: 0.002079049141 | AC41: 1.491577995e-08 | AD41: 0.004844226434 | AE41: 1.126040208e-07 | AF41: 0.004097125639 | AG41: 4.490339948e-08 | AH41: 0.004478102547 | AI41: 7.560518418e-08 | AJ41: 8.921223844e-08 | AK41: 0.004621408738 | AL41: 0.005982668631 | AM41: 2.74577592e-07 | AN41: 0.0001797535124 | AO41: 1.905355897e-07 | AP41: 0.005686863545 | AQ41: 2.256625388e-07 | AR41: 0.004143695928 | AS41: 4.822969034e-08 | AT41: -0.005785705017 | AU41: -0.009535705017 | AV41: 61 | AW41: 0.08591549296 | AX41: 0.06600950752 | AY41: 0.08304868834 | BA41: 1.003636364 | BB41: 0.9942309999 | BC41: 0.9905096156 | BD41: 61 | BE41: 0.08591549296 | BF41: 0.008807671901 | BG41: 0.008807671901 | BH41: 5.829035361e-05 | BJ41: 0.9963768116
A42: 1955-06-19 | B42: 2.78 | C42: 0.02 | D42: 0.02 | E42: 0.02170422535 | F42: 0.007220247973 | G42: 0.007220247973 | H42: 0.008005952991 | I42: -3.582719258 | J42: 1616.510995 | K42: 137.737578 | L42: 0.1273700444 | M42: 12.75 | N42: 12.5 | O42: 9 | P42: 0.01265822785 | R42: 0.006985488514 | T42: 0.1275 | U42: 0.125 | V42: 2 | W42: 0.004225352113 | X42: 0.001715467612 | Y42: 1.725895947e-07 | Z42: 0.000311399835 | AA42: 4.196992447e-07 | AB42: 0.001665834135 | AC42: 1.794830762e-07 | AD42: 0.004210221182 | AE42: 6.272467191e-12 | AF42: 0.003495411025 | AG42: 1.45976436e-08 | AH42: 0.003845269 | AI42: 3.957895148e-09 | AJ42: 1.405900769e-09 | AK42: 0.003998823134 | AL42: 0.005623601261 | AM42: 5.356440223e-08 | AN42: 0.0001148803442 | AO42: 4.629035112e-07 | AP42: 0.005310561444 | AQ42: 3.226518611e-08 | AR42: 0.003854660477 | AS42: 3.764720237e-09 | AT42: 0.001714294983 | AU42: -0.002035705017 | AV42: 62 | AW42: 0.08732394366 | AX42: 0.06727382538 | AY42: =0.5*(1-GAMMADIST(ABS(1E-97),AK$11,AK$12,TRUE))-0.5*(1-GAMMADIST(ABS(AT41-$F$734),AK$11,AK$12,TRUE))+0.5*(GAMMADIST(ABS(AT42-$F$734),AK$11,AK$12,TRUE))-0.5*( GAMMADIST(ABS(1E-97),AK$11,AK$12,TRUE)) -> 0.09636093284 | BA42: 1.007246377 | BB42: 1.001715765 | BC42: 0.9979663656 | BD42: 62 | BE42: 0.08732394366 | BF42: 0.008656063711 | BG42: 0.008656063711 | BH42: 6.067289545e-05 | BJ42: 0.9928057554
A43: 1955-07-19 | B43: 2.9 | C43: 0.12 | D43: 0.12 | E43: 0.1217042254 | F43: 0.04225980929 | G43: 0.04225980929 | H43: 0.04304551431 | I43: -3.540459449 | J43: 1305.167724 | K43: 119.4292991 | L43: 0.08810592171 | M43: 13.25 | N43: 13 | O43: 4 | P43: 0.005625879044 | R43: 0.005678991775 | T43: 0.1325 | U43: 0.13 | V43: 3 | W43: 0 | X43: 0.001242005063 | Y43: 4.226237193e-08 | Z43: 0.0001930334347 | AA43: 1.020874162e-09 | AB43: 0.001334245579 | AC43: 4.877291135e-08 | AD43: 0.003659156957 | AE43: 3.668336887e-07 | AF43: 0.002981376677 | AG43: 2.435234764e-07 | AH43: 0.003299516507 | AI43: 2.982687446e-07 | AJ43: 3.279838707e-07 | AK43: 0.003459972728 | AL43: 0.005298229613 | AM43: 7.690749873e-07 | AN43: 7.329243929e-05 | AO43: 1.471721002e-10 | AP43: 0.004969731157 | AQ43: 6.766637746e-07 | AR43: 0.003597682002 | AS43: 3.546113914e-07 | AT43: 0.009214294983 | AU43: 0.005464294983 | AV43: 62 | AW43: 0.08732394366 | AX43: 0.06663866808 | AY43: 0.08847846672 | BA43: 1.043165468 | BB43: 1.009256877 | BC43: 1.005479251 | BD43: 62 | BE43: 0.08732394366 | BF43: 0.008508337792 | BG43: 0.008508337792 | BH43: 6.090097773e-05 | BJ43: 0.9586206897
A44: 1955-08-19 | B44: 2.97 | C44: 0.07 | D44: 0.07 | E44: 0.07170422535 | F44: 0.02385121582 | G44: 0.02385121582 | H44: 0.02463692084 | I44: -3.516608233 | J44: 1147.881473 | K44: 109.6304923 | L44: 0.07081546114 | M44: 13.75 | N44: 13.5 | O44: 8 | P44: 0.01125175809 | R44: 0.004617630282 | T44: 0.1375 | U44: 0.135 | V44: 0 | W44: 0.001408450704 | X44: 0.0008878995354 | Y44: 7.423932038e-09 | Z44: 0.0001174362172 | AA44: 4.566351796e-08 | AB44: 0.001068339384 | AC44: 3.169197536e-09 | AD44: 0.003180232191 | AE44: 8.600574351e-08 | AF44: 0.002542432864 | AG44: 3.52305627e-08 | AH44: 0.002829209849 | AI44: 5.530291914e-08 | AJ44: 6.884294558e-08 | AK44: 0.002993621835 | AL44: 0.005002333565 | AM44: 3.538628498e-07 | AN44: 4.669228851e-05 | AO44: 5.080509542e-08 | AP44: 0.004660041565 | AQ44: 2.896669349e-07 | AR44: 0.003367317946 | AS44: 1.051276951e-07 | AT44: 0.01671429498 | AU44: 0.01296429498 | AV44: 60 | AW44: 0.08450704225 | AX44: 0.06415744282 | AY44: 0.07265508937 | BA44: 1.024137931 | BB44: 1.01685476 | BC44: 1.013048696 | BD44: 60 | BE44: 0.08450704225 | BF44: 0.008364362693 | BG44: 0.008364362693 | BH44: 5.684027108e-05 | BJ44: 0.9764309764
A45: 1955-09-19 | B45: 2.97 | C45: 0 | D45: 0 | E45: 0.001704225352 | F45: 0 | G45: 0.00065 | H45: 0.0007857050175 | I45: -3.516608233 | J45: 1147.881473 | K45: 109.6304923 | L45: 0.07081546114 | M45: 14.25 | N45: 14 | O45: 4 | P45: 0.005625879044 | R45: 0.003756246026 | T45: 0.1425 | U45: 0.14 | V45: 1 | W45: 0.001408450704 | X45: 0.000626763805 | Y45: 1.674066872e-08 | Z45: 7.011757897e-05 | AA45: 4.907220696e-08 | AB45: 0.0008552206345 | AC45: 8.385301644e-09 | AD45: 0.002764222656 | AE45: 5.035938587e-08 | AF45: 0.002167746972 | AG45: 1.579536498e-08 | AH45: 0.002424218158 | AI45: 2.826804167e-08 | AJ45: 3.82506557e-08 | AK45: 0.002590038167 | AL45: 0.004732344858 | AM45: 3.026923931e-07 | AN45: 2.971078083e-05 | AO45: 5.208010346e-08 | AP45: 0.004377828473 | AQ45: 2.41567242e-07 | AR45: 0.003159426375 | AS45: 8.399769314e-08 | AT45: 0.02421429498 | AU45: 0.02046429498 | AV45: 42 | AW45: 0.05915492958 | AX45: 0.06003552774 | AY45: 0.05904912457 | BA45: 1 | BB45: 1.024509842 | BC45: 1.020675124 | BD45: 42 | BE45: 0.05915492958 | BF45: 0.008224012482 | BG45: 0.008224012482 | BH45: 2.543096388e-05 | BJ45: 1
A46: 1955-10-19 | B46: 2.88 | C46: -0.09 | D46: 0.09 | E46: 0.08829577465 | F46: -0.03077165867 | G46: 0.03077165867 | H46: 0.02998595365 | I46: -3.547379892 | J46: 1353.267357 | K46: 122.3458016 | L46: 0.09373446622 | M46: 14.75 | N46: 14.5 | O46: 4 | P46: 0.005625879044 | R46: 0.003057519135 | T46: 0.1475 | U46: 0.145 | V46: 1 | W46: 0.001408450704 | X46: 0.0004368613291 | Y46: 2.586262777e-08 | Z46: 4.108725263e-05 | AA46: 5.122418654e-08 | AB46: 0.0006844841871 | AC46: 1.435965803e-08 | AD46: 0.002402456717 | AE46: 2.706980693e-08 | AF46: 0.001848012011 | AG46: 5.29353815e-09 | AH46: 0.00207572751 | AI46: 1.219885852e-08 | AJ46: 1.8980572e-08 | AK46: 0.002240791306 | AL46: 0.004485228637 | AM46: 2.593578753e-07 | AN46: 1.888695165e-05 | AO46: 5.290102527e-08 | AP46: 0.004119872941 | AQ46: 2.01419467e-07 | AR46: 0.002970720529 | AS46: 6.686813715e-08 | AT46: 0.03171429498 | AU46: 0.02796429498 | AV46: 44 | AW46: 0.06197183099 | AX46: 0.05460220282 | AY46: 0.04782233752 | BA46: 0.9696969697 | BB46: 1.032222552 | BC46: 1.028358966 | BD46: 44 | BE46: 0.06197183099 | BF46: 0.008087166466 | BG46: 0.008087166466 | BH46: 2.846624579e-05 | BJ46: 1.03125
A47: 1955-11-19 | B47: 2.89 | C47: 0.01 | D47: 0.01 | E47: 0.01170422535 | F47: 0.003466207976 | G47: 0.003466207976 | H47: 0.004251912994 | I47: -3.543913684 | J47: 1329.036218 | K47: 120.8809536 | L47: 0.09087902034 | M47: 15.25 | N47: 15 | O47: 2 | P47: 0.002812939522 | R47: 0.00249081423 | T47: 0.1525 | U47: 0.15 | V47: 1 | W47: 0 | X47: 0.0003006650233 | Y47: 2.47669743e-09 | Z47: 2.362885139e-05 | AA47: 1.529651008e-11 | AB47: 0.0005477491221 | AC47: 8.219975362e-09 | AD47: 0.002085808103 | AE47: 1.191943957e-07 | AF47: 0.001575241848 | AG47: 6.798320222e-08 | AH47: 0.001776075892 | AI47: 8.642316646e-08 | AJ47: 1.029613885e-07 | AK47: 0.001938579552 | AL47: 0.004258389532 | AM47: 4.968186687e-07 | AN47: 1.199699014e-05 | AO47: 3.943226641e-12 | AP47: 0.003883533408 | AQ47: 4.132008693e-07 | AR47: 0.002798675907 | AS47: 2.1459142e-07 | AT47: 0.03921429498 | AU47: 0.03546429498 | AV47: 38 | AW47: 0.05352112676 | AX47: 0.04826724726 | AY47: 0.03865944799 | BA47: 1.003472222 | BB47: 1.039993325 | BC47: 1.036100653 | BD47: 38 | BE47: 0.05352112676 | BF47: 0.007953708937 | BG47: 0.007953708937 | BH47: 2.035676046e-05 | BJ47: 0.9965397924
A48: 1955-12-19 | B48: 2.96 | C48: 0.07 | D48: 0.07 | E48: 0.07170422535 | F48: 0.02393276621 | G48: 0.02393276621 | H48: 0.02471847123 | I48: -3.519980918 | J48: 1169.331196 | K48: 110.9920035 | L48: 0.07307279541 | M48: 15.75 | N48: 15.5 | O48: 1 | P48: 0.001406469761 | R48: 0.002031110134 | T48: 0.1575 | U48: 0.155 | V48: 0 | W48: 0 | X48: 0.0002043251491 | Y48: 1.143801823e-09 | Z48: 1.333624074e-05 | AA48: 4.87274841e-12 | AB48: 0.0004382746601 | AC48: 5.26259391e-09 | AD48: 0.001813531392 | AE48: 9.010674277e-08 | AF48: 0.001342591145 | AG48: 4.938495844e-08 | AH48: 0.001518608 | AI48: 6.31827468e-08 | AJ48: 7.705742192e-08 | AK48: 0.001677079575 | AL48: 0.004049597386 | AM48: 4.492942189e-07 | AN48: 7.615854597e-06 | AO48: 1.589075102e-12 | AP48: 0.003666444816 | AQ48: 3.682963723e-07 | AR48: 0.002641190856 | AS48: 1.911202503e-07 | AT48: 0.04671429498 | AU48: 0.04296429498 | AV48: 31 | AW48: 0.04366197183 | AX48: 0.04147013262 | AY48: 0.03121705473 | BA48: 1.024221453 | BB48: 1.047822598 | BC48: 1.043900622 | BD48: 31 | BE48: 0.04366197183 | BF48: 0.007823528922 | BG48: 0.007823528922 | BH48: 1.259209794e-05 | BJ48: 0.9763513514
A49: 1956-01-19 | B49: 2.9 | C49: -0.06 | D49: 0.06 | E49: 0.05829577465 | F49: -0.02047853134 | G49: 0.02047853134 | H49: 0.01969282633 | I49: -3.540459449 | J49: 1305.167724 | K49: 119.4292991 | L49: 0.08810592171 | M49: 16.25 | N49: 16 | O49: 0 | P49: 0 | R49: 0.001658048219 | T49: 0.1625 | U49: 0.16 | V49: 0 | W49: 0 | X49: 0.0001371072267 | Y49: 5.150244277e-10 | Z49: 7.387194472e-06 | AA49: 1.495086087e-12 | AB49: 0.0003506454 | AC49: 3.368553331e-09 | AD49: 0.001572350058 | AE49: 6.773382753e-08 | AF49: 0.001144197811 | AG49: 3.586818169e-08 | AH49: 0.001297547593 | AI49: 4.612684263e-08 | AJ49: 5.766758407e-08 | AK49: 0.001450815915 | AL49: 0.003856922908 | AM49: 4.075576525e-07 | AN49: 4.83242588e-06 | AO49: 6.397901339e-13 | AP49: 0.003466576393 | AQ49: 3.29237038e-07 | AR49: 0.002496548346 | AS49: 1.707603738e-07 | AT49: 0.05421429498 | AU49: 0.05046429498 | AV49: 12 | AW49: 0.01690140845 | AX49: =NORMDIST(AT49,F$734,F$736,TRUE)-NORMDIST(AT48,F$734,F$736,TRUE) -> 0.03463050545 | AY49: 0.02518825634 | BA49: 0.9797297297 | BB49: 1.055710811 | BC49: 1.05175931 | BD49: 12 | BE49: 0.01690140845 | BF49: 0.007696519955 | BG49: 0.007696519955 | BH49: 8.306860021e-07 | BJ49: 1.020689655
A50: 1956-02-19 | B50: 2.84 | C50: -0.06 | D50: 0.06 | E50: 0.05829577465 | F50: -0.02090668482 | G50: 0.02090668482 | H50: 0.0201209798 | I50: -3.561366134 | J50: 1453.906866 | K50: 128.3387264 | L50: 0.1060277813 | M50: 16.75 | N50: 16.5 | O50: 0 | P50: 0 | R50: 0.001355109662 | T50: 0.1675 | U50: 0.165 | V50: 0 | W50: 0 | X50: 9.0844465e-05 | Y50: 2.261018307e-10 | Z50: 4.015881663e-06 | AA50: 4.418439872e-13 | AB50: 0.0002805146954 | AC50: 2.15584916e-09 | AD50: 0.001355245044 | AE50: 5.032025015e-08 | AF50: 0.0009750457307 | AG50: 2.604696375e-08 | AH50: 0.001107885391 | AI50: 3.36276723e-08 | AJ50: 4.315465442e-08 | AK50: 0.001255047763 | AL50: 0.003678696875 | AM50: 3.70761937e-07 | AN50: 3.065268715e-06 | AO50: 2.574211588e-13 | AP50: 0.003282178572 | AQ50: 2.951423611e-07 | AR50: 0.002363326138 | AS50: 1.530222036e-07 | AT50: 0.06171429498 | AU50: 0.05796429498 | AV50: 15 | AW50: 0.02112676056 | AX50: 0.02810753334 | AY50: 0.02031256986 | BA50: 0.9793103448 | BB50: 1.063658409 | BC50: 1.059677159 | BD50: 15 | BE50: 0.02112676056 | BF50: 0.00757257986 | BG50: 0.00757257986 | BH50: 1.801135437e-06 | BJ50: 1.021126761
A51: 1956-03-19 | B51: 2.96 | C51: 0.12 | D51: 0.12 | E51: 0.1217042254 | F51: 0.04138521616 | G51: 0.04138521616 | H51: 0.04217092118 | I51: -3.519980918 | J51: 1169.331196 | K51: 110.9920035 | L51: 0.07307279541 | M51: 17.25 | N51: 17 | O51: 0 | P51: 0 | R51: 0.001108917982 | T51: 0.1725 | U51: 0.17 | V51: 0 | W51: 0.001408450704 | X51: 5.943416935e-05 | Y51: 4.985878387e-08 | Z51: 2.14258277e-06 | AA51: 5.418363103e-08 | AB51: 0.0002243962729 | AC51: 3.841054511e-08 | AD51: 0.001186790435 | AE51: 1.346117127e-09 | AF51: 0.0008308455626 | AG51: 9.140484922e-09 | AH51: 0.0009452807031 | AI51: 5.877436984e-09 | AJ51: 2.854435571e-09 | AK51: 0.001085670751 | AL51: 0.003513461759 | AM51: 1.213992203e-07 | AN51: 1.943920896e-06 | AO51: 5.419894059e-08 | AP51: 0.003111644935 | AQ51: 7.947590655e-08 | AR51: 0.002240264143 | AS51: 1.89565369e-08 | AT51: 0.06921429498 | AU51: 0.06546429498 | AV51: 8 | AW51: 0.01126760563 | AX51: 0.02217313592 | AY51: 0.01637383193 | BA51: 1.042253521 | BB51: 1.071665837 | BC51: 1.067654616 | BD51: 8 | BE51: 0.01126760563 | BF51: 0.007451610542 | BG51: 0.007451610542 | BH51: 1.427629268e-07 | BJ51: 0.9594594595
A52: 1956-04-19 | B52: 3.18 | C52: 0.22 | D52: 0.22 | E52: 0.2217042254 | F52: 0.07169192846 | G52: 0.07169192846 | H52: 0.07247763347 | I52: -3.448288989 | J52: 767.4477565 | K52: 83.82351737 | L52: 0.03610145151 | M52: 17.75 | N52: 17.5 | O52: 0 | P52: 0 | R52: 0.000908656067 | T52: 0.1775 | U52: 0.175 | V52: 1 | W52: 0.001408450704 | X52: 3.839489822e-05 | Y52: 5.142610717e-08 | Z52: 1.121888142e-06 | AA52: 5.426231224e-08 | AB52: 0.0001794955566 | AC52: 4.137892479e-08 | AD52: 0.001074187608 | AE52: 3.061145681e-09 | AF52: 0.0007079315491 | AG52: 1.344457772e-08 | AH52: 0.000805975188 | AI52: 9.944568428e-09 | AJ52: 6.034526984e-09 | AK52: 0.0009391317989 | AL52: 0.003359943339 | AM52: 1.043376302e-07 | AN52: 1.232648897e-06 | AO52: 5.425377138e-08 | AP52: 0.002953679972 | AQ52: 6.541735593e-08 | AR52: 0.002126363817 | AS52: 1.412052705e-08 | AT52: 0.07671429498 | AU52: 0.07296429498 | AV52: 13 | AW52: 0.01830985915 | AX52: 0.01700090202 | AY52: 0.01319451393 | BA52: 1.074324324 | BB52: 1.079733547 | BC52: 1.075692129 | BD52: 13 | BE52: 0.01830985915 | BF52: 0.007333517796 | BG52: 0.007333517796 | BH52: 1.181177153e-06 | BJ52: 0.9308176101
A53: 1956-05-19 | B53: 3.07 | C53: -0.11 | D53: 0.11 | E53: 0.1082957746 | F53: -0.03520363519 | G53: 0.03520363519 | H53: 0.03441793018 | I53: -3.483492624 | J53: 950.8179694 | K53: 96.6937167 | L53: 0.05156964859 | M53: 18.25 | N53: 18 | O53: 0 | P53: 0 | R53: 0.0007455839756 | T53: 0.1825 | U53: 0.18 | V53: 1 | W53: 0 | X53: 2.449122105e-05 | Y53: 1.643342215e-11 | Z53: 5.765227147e-07 | AA53: 9.106258645e-15 | AB53: 0.000143573471 | AC53: 5.647490843e-10 | AD53: 0.0006508558576 | AE53: 1.160584513e-08 | AF53: 0.0006031723931 | AG53: 9.967587282e-09 | AH53: 0.0006867173098 | AI53: 1.292001818e-08 | AJ53: 1.808003815e-08 | AK53: 0.0008123554594 | AL53: 0.003217022741 | AM53: 2.835406936e-07 | AN53: 7.816097817e-07 | AO53: 1.673736578e-14 | AP53: 0.002807067032 | AQ53: 2.158801459e-07 | AR53: 0.002020707442 | AS53: 1.118700977e-07 | AT53: 0.08421429498 | AU53: 0.08046429498 | AV53: 5 | AW53: 0.007042253521 | AX53: 0.01266943501 | AY53: 0.01062973262 | BA53: 0.965408805 | BB53: 1.087861992 | BC53: 1.083790149 | BD53: 5 | BE53: 0.007042253521 | BF53: 0.007218211121 | BG53: 0.007218211121 | BH53: 3.035399714e-10 | BJ53: 1.035830619
A54: 1956-06-19 | B54: 3 | C54: -0.07 | D54: 0.07 | E54: 0.06829577465 | F54: -0.02306527293 | G54: 0.02306527293 | H54: 0.02227956791 | I54: -3.506557897 | J54: 1085.489521 | K54: 105.6210361 | L54: 0.06443042285 | M54: 18.75 | N54: 18.5 | O54: 0 | P54: 0 | R54: 0.0006126431896 | T54: 0.1875 | U54: 0.185 | V54: 0 | W54: 0 | X54: 1.542577339e-05 | Z54: 2.907628798e-07 | AB54: 0.0001148366852 | AD54: 0.0005891362523 | AF54: 0.0005138944538 | AH54: 0.0005846962289 | AK54: 0.0007026790455 | AL54: 0.003083713993 | AN54: 4.956384279e-07 | AP54: 0.00267075016 | AR54: 0.00192250829 | AT54: 0.09171429498 | AU54: 0.08796429498 | AV54: 1 | AW54: 0.001408450704 | AX54: 0.009176624179 | AY54: 0.008561645362 | BA54: 0.9771986971 | BB54: 1.09605163 | BC54: 1.091949133 | BD54: 1 | BE54: 0.001408450704 | BF54: 0.007105603549 | BG54: 0.007105603549 | BH54: 3.182112798e-07 | BJ54: 1.023333333
A55: 1956-07-19 | B55: 3.11 | C55: 0.11 | D55: 0.11 | E55: 0.1117042254 | F55: 0.03601043752 | G55: 0.03601043752 | H55: 0.03679614254 | I55: -3.47054746 | J55: 880.3284051 | K55: 91.85366231 | L55: 0.04534291977 | M55: 19.25 | N55: 19 | O55: 0 | P55: 0 | R55: 0.0005041337259 | T55: 0.1925 | U55: 0.19 | V55: 0 | W55: 0 | X55: 9.5936317e-06 | Z55: 1.439184658e-07 | AB55: 9.184930159e-05 | AD55: 0.005623521437 | AF55: 0.0004378156712 | AH55: 0.0004974839953 | AK55: 0.0006077990591 | AL55: 0.002959145302 | AN55: 3.143366841e-07 | AP55: 0.002543793578 | AR55: 0.001831075877 | AT55: 0.09921429498 | AU55: 0.09546429498 | AV55: 3 | AW55: 0.004225352113 | AX55: 0.006460245627 | AY55: 0.006894662947 | BA55: 1.036666667 | BB55: 1.104302921 | BC55: 1.10016954 | BD55: 3 | BE55: 0.004225352113 | BF55: 0.006995611477 | BG55: 0.006995611477 | BH55: 7.523859752e-08 | BJ55: 0.9646302251
A56: 1956-08-19 | B56: 3.33 | C56: 0.22 | D56: 0.22 | E56: 0.2217042254 | F56: 0.0683495778 | G56: 0.0683495778 | H56: 0.06913528282 | I56: -3.402197882 | J56: 565.6658721 | K56: 68.39746172 | L56: 0.02186556819 | M56: 19.75 | N56: 19.5 | O56: 0 | P56: 0 | R56: 0.0004154518564 | T56: 0.1975 | U56: 0.195 | V56: 0 | W56: 0 | X56: 5.891402918e-06 | Z56: 6.991160406e-08 | AB56: 7.346188712e-05 | AD56: 0 | AF56: 0.0003729888079 | AH56: 0.0004229850496 | AK56: 0.0005257211626 | AL56: 0.002842543363 | AN56: 1.993919294e-07 | AP56: 0.002425365579 | AR56: 0.001745800815 | AT56: 0.106714295 | AU56: 0.102964295 | AV56: 2 | AW56: 0.002816901408 | AX56: 0.004420337946 | AY56: 0.005551395035 | BA56: 1.07073955 | BB56: 1.112616329 | BC56: 1.108451831 | BD56: 2 | BE56: 0.002816901408 | BF56: 0.006888154518 | BG56: 0.006888154518 | BH56: 1.625009988e-07 | BJ56: 0.9339339339
A57: 1956-09-19 | B57: 3.38 | C57: 0.05 | D57: 0.05 | E57: 0.05170422535 | F57: 0.0149034055 | G57: 0.0149034055 | H57: 0.01568911052 | I57: -3.387294476 | J57: 509.1626825 | K57: 63.76333795 | L57: 0.01841903517 | M57: 20.25 | N57: 20 | O57: 0 | P57: 0 | R57: 0.0003428777636 | T57: 0.2025 | U57: 0.2 | V57: 0 | W57: 0 | X57: 3.572349935e-06 | Z57: 3.333014376e-08 | AB57: 5.875449715e-05 | AD57: 0 | AF57: 0.0003177527549 | AH57: 0.0003593921435 | AK57: 0.0004547196225 | AL57: 0.002733220145 | AN57: 1.265105671e-07 | AP57: 0.00231472489 | AR57: 0.00166614274 | AT57: 0.114214295 | AU57: 0.110464295 | AV57: 1 | AW57: 0.001408450704 | AX57: 0.00293969479 | AY57: 0.004469239964 | BA57: 1.015015015 | BB57: 1.120992322 | BC57: 1.116796473 | BD57: 1 | BE57: 0.001408450704 | BF57: 0.006783155346 | BG57: 0.006783155346 | BH57: 2.83210294e-07 | BJ57: 0.9852071006
A58: 1956-10-19 | B58: 3.34 | C58: -0.04 | D58: 0.04 | E58: 0.03829577465 | F58: -0.01190490251 | G58: 0.01190490251 | H58: 0.01111919749 | I58: -3.399199379 | J58: 553.9661128 | K58: 67.45106314 | L58: 0.02113211993 | M58: 20.75 | N58: 20.5 | O58: 0 | P58: 0 | R58: 0.0002834040425 | T58: 0.2075 | U58: 0.205 | V58: 0 | W58: 0 | X58: 2.138891497e-06 | Z58: 1.559481588e-08 | AB58: 4.699096864e-05 | AD58: 0 | AF58: 0.0002706908003 | AH58: 0.0003051478997 | AK58: 0.0003933010334 | AL58: 0.002630561722 | AN58: 8.029238907e-08 | AP58: 0.002211223758 | AR58: 0.001591631091 | AT58: 0.121714295 | AU58: 0.117964295 | AV58: 1 | AW58: 0.001408450704 | AX58: 0.001900156206 | AY58: 0.003597620027 | BA58: 0.9881656805 | BB58: 1.129431371 | BC58: 1.125203935 | BD58: 1 | BE58: 0.001408450704 | BF58: 0.006680539565 | BG58: 0.006680539565 | BH58: 2.724992251e-07 | BJ58: 1.011976048
A59: 1956-11-19 | B59: 3.49 | C59: 0.15 | D59: 0.15 | E59: 0.1517042254 | F59: 0.04393092923 | G59: 0.04393092923 | H59: 0.04471663424 | I59: -3.35526845 | J59: 401.2315455 | K59: 54.39972619 | L59: 0.01251975039 | M59: 21.25 | N59: 21 | O59: 0 | P59: 0 | R59: 0.0002345974306 | T59: 0.2125 | U59: 0.21 | V59: 0 | W59: 0 | X59: 1.264513005e-06 | Z59: 7.161079063e-09 | AB59: 3.758227642e-05 | AD59: 0 | AF59: 0.0002305948998 | AH59: 0.0002589113189 | AK59: 0.000340173098 | AL59: 0.002534018777 | AN59: 5.097645017e-08 | AP59: 0.002114223559 | AR59: 0.001521803461 | AT59: 0.129214295 | AU59: 0.125464295 | AV59: 2 | AW59: 0.002816901408 | AX59: 0.0011937589 | AY59: 0.002895694965 | BA59: 1.04491018 | BB59: 1.137933952 | BC59: 1.13367469 | BD59: 2 | BE59: 0.002816901408 | BF59: 0.00658023557 | BG59: 0.00658023557 | BH59: 1.388498433e-07 | BJ59: 0.9570200573
A60: 1956-12-19 | B60: 3.59 | C60: 0.1 | D60: 0.1 | E60: 0.1017042254 | F60: 0.02825046629 | G60: 0.02825046629 | H60: 0.0290361713 | I60: -3.327017983 | J60: 320.3582402 | K60: 46.81919399 | L60: 0.008713002535 | M60: 21.75 | N60: 21.5 | O60: 0 | P60: 0 | R60: 0.0001944874604 | T60: 0.2175 | U60: 0.215 | V60: 0 | W60: 0 | X60: 7.381713412e-07 | Z60: 3.227243806e-09 | AB60: 3.005717015e-05 | AD60: 0 | AF60: 0.0001964351067 | AH60: 0.0002195286206 | AK60: 0.0002942175911 | AL60: 0.002443098521 | AN60: 3.237647883e-08 | AP60: 0.002023237772 | AR60: 0.001456307925 | AT60: 0.136714295 | AU60: 0.132964295 | AV60: 1 | AW60: 0.001408450704 | AX60: 0.0007289272046 | AY60: 0.002330513884 | BA60: 1.028653295 | BB60: 1.146500541 | BC60: 1.142209215 | BD60: 1 | BE60: 0.001408450704 | BF60: 0.006482174428 | BG60: 0.006482174428 | BH60: 2.523791414e-07 | BJ60: 0.9721448468
A61: 1957-01-19 | B61: 3.46 | C61: -0.13 | D61: 0.13 | E61: 0.1282957746 | F61: -0.03688361343 | G61: 0.03688361343 | H61: 0.03609790841 | I61: -3.363901597 | J61: 428.5699136 | K61: 56.84354044 | L61: 0.01392729703 | M61: 22.25 | N61: 22 | O61: 0 | P61: 0 | R61: 0.0001614768571 | T61: 0.2225 | U61: 0.22 | V61: 0 | W61: 0 | X61: 4.254914543e-07 | Z61: 1.42738199e-09 | AB61: 2.403865452e-05 | AD61: 0 | AF61: 0.0001673334362 | AH61: 0.0001860078816 | AK61: 0.0002544669496 | AL61: 0.002357357765 | AN61: 2.057168069e-08 | AP61: 0.001937770719 | AR61: 0.001394786602 | AT61: 0.144214295 | AU61: 0.140464295 | AV61: 1 | AW61: 0.001408450704 | AX61: 0.0004326053369 | AY61: 0.001875495499 | BA61: 0.9637883008 | BB61: 1.155131621 | BC61: 1.150807989 | BD61: 1 | BE61: 0.001408450704 | BF61: 0.006386289753 | BG61: 0.006386289753 | BH61: 2.429302117e-07 | BJ61: 1.037572254
A62: 1957-02-19 | B62: 3.34 | C62: -0.12 | D62: 0.12 | E62: 0.1182957746 | F62: -0.03529778208 | G62: 0.03529778208 | H62: 0.03451207706 | I62: -3.399199379 | J62: 553.9661128 | K62: 67.45106314 | L62: 0.02113211993 | M62: 22.75 | N62: 22.5 | O62: 0 | P62: 0 | R62: 0.0001342694598 | T62: 0.2275 | U62: 0.225 | V62: 0 | W62: 0 | X62: 2.421719665e-07 | Z62: 6.195890467e-10 | AB62: 1.922515586e-05 | AD62: 0 | AF62: 0.0001425415315 | AH62: 0.0001574969949 | AK62: 0.0002200840031 | AL62: 0.002276396978 | AN62: 1.307686759e-08 | AP62: 0.001857389639 | AR62: 0.001336927301 | AT62: 0.151714295 | AU62: 0.147964295 | AV62: 0 | AW62: 0 | AX62: 0.0002495397418 | AY62: 0.001509209014 | BA62: 0.9653179191 | BB62: 1.163827678 | BC62: 1.159471497 | BD62: 0 | BE62: 0 | BF62: 0.006292517601 | BG62: 0.006292517601 | BH62: 3.881938996e-07 | BJ62: 1.035928144
A63: 1957-03-19 | B63: 3.41 | C63: 0.07 | D63: 0.07 | E63: 0.07170422535 | F63: 0.02074148431 | G63: 0.02074148431 | H63: 0.02152718932 | I63: -3.378457895 | J63: 477.5784599 | K63: 61.09839761 | L63: 0.01659856596 | M63: 23.25 | N63: 23 | O63: 0 | P63: 0 | R63: 0.0001118122437 | T63: 0.2325 | U63: 0.23 | V63: 0 | W63: 0 | X63: 1.360995014e-07 | Z63: 2.639504171e-10 | AB63: 1.537544527e-05 | AD63: 0 | AF63: 0.0001214215887 | AH63: 0.0001332645313 | AK63: 0.0001903444258 | AL63: 0.00219985516 | AN63: 8.316558664e-09 | AP63: 0.001781703311 | AR63: 0.001282447984 | AT63: 0.159214295 | AU63: 0.155464295 | AV63: 0 | AW63: 0 | AX63: 0.0001399032036 | AY63: 0.001214380656 | BA63: 1.020958084 | BB63: 1.1725892 | BC63: 1.168200225 | BD63: 0 | BE63: 0 | BF63: 0.006200796358 | BG63: 0.006200796358 | BH63: 3.769595634e-07 | BJ63: 0.9794721408
A64: 1957-04-19 | B64: 3.48 | C64: 0.07 | D64: 0.07 | E64: 0.07170422535 | F64: 0.02032000249 | G64: 0.02032000249 | H64: 0.02110570751 | I64: -3.358137892 | J64: 410.1779019 | K64: 55.20539304 | L64: 0.01297377594 | M64: 23.75 | N64: 23.5 | O64: 0 | P64: 0 | R64: 9.324867363e-05 | T64: 0.2375 | U64: 0.235 | V64: 0 | W64: 0 | X64: 7.552465564e-08 | Z64: 1.103559466e-10 | AB64: 1.229657121e-05 | AD64: 0 | AF64: 0.0001034300708 | AH64: 0.0001126831363 | AK64: 0.0001646215458 | AL64: 0.002127405419 | AN64: 5.291762917e-09 | AP64: 0.001710357351 | AR64: 0.001231093291 | AT64: 0.166714295 | AU64: 0.162964295 | AV64: 0 | AW64: 0 | AX64: 7.623521678e-05 | AY64: 0.0009770909702 | BA64: 1.020527859 | BB64: 1.18141668 | BC64: 1.176994664 | BD64: 0 | BE64: 0 | BF64: 0.006111066639 | BG64: 0.006111066639 | BH64: 3.661287791e-07 | BJ64: 0.9798850575
A65: 1957-05-19 | B65: 3.6 | C65: 0.12 | D65: 0.12 | E65: 0.1217042254 | F65: 0.03390155168 | G65: 0.03390155168 | H65: 0.03468725669 | I65: -3.324236341 | J65: 313.0799087 | K65: 46.10734684 | L65: 0.008397304778 | M65: 24.25 | N65: 24 | O65: 0 | P65: 0 | R65: 7.78811612e-05 | T65: 0.2425 | U65: 0.24 | V65: 0 | W65: 0 | X65: 4.138286203e-08 | Z65: 4.528200037e-11 | AB65: 9.834202654e-06 | AD65: 0 | AF65: 8.810380873e-05 | AH65: 9.521513755e-05 | AK65: 0.0001423731951 | AL65: 0.002058751123 | AN65: 3.368864743e-09 | AP65: 0.001643030122 | AR65: 0.001182631535 | AT65: 0.174214295 | AU65: 0.170464295 | AV65: 0 | AW65: 0 | AX65: 4.037602982e-05 | AY65: 0.0007861259587 | BA65: 1.034482759 | BB65: 1.190310616 | BC65: 1.18585531 | BD65: 0 | BE65: 0 | BF65: 0.006023271195 | BG65: 0.006023271195 | BH65: 3.556842734e-07 | BJ65: 0.9666666667
A66: 1957-06-19 | B66: 3.8 | C66: 0.2 | D66: 0.2 | E66: 0.2017042254 | F66: 0.05406722127 | G66: 0.05406722127 | H66: 0.05485292629 | I66: -3.270169119 | J66: 193.8949813 | K66: 33.49996697 | L66: 0.003901729897 | M66: 24.75 | N66: 24.5 | O66: 0 | P66: 0 | R66: =LOGNORMDIST(25.5,R$12,R$13)-LOGNORMDIST(M65,R$12,R$13) -> 0.0001435889054 | T66: 0.2475 | U66: 0.245 | V66: 0 | W66: 0.002816901408 | X66: 2.23898835e-08 | Z66: 1.823496909e-11 | AB66: 7.864901999e-06 | AD66: 0 | AF66: 7.504814242e-05 | AH66: 8.0400081e-05 | AK66: 0.0001231303279 | AL66: 0.00199362256 | AN66: 2.145862044e-09 | AP66: 0.001579429164 | AR66: 0.001136852093 | AT66: 0.181714295 | AU66: 0.177964295 | AV66: 2 | AW66: 0.002816901408 | AX66: 2.07841145e-05 | AY66: 0.0006324530458 | BA66: 1.055555556 | BB66: 1.199271507 | BC66: 1.194782661 | BD66: 2 | BE66: 0.002816901408 | BF66: 0.005937354818 | BG66: 0.005937354818 | BH66: 9.546303414e-08 | BJ66: 0.9473684211
A67: 1957-07-19 | B67: 3.93 | C67: 0.13 | D67: 0.13 | E67: 0.1317042254 | F67: 0.03363835915 | G67: 0.03363835915 | H67: 0.03442406417 | I67: -3.23653076 | J67: 138.9359206 | K67: 26.82520371 | L67: 0.00229303685 | M67: 25.25 | N67: 25 | O67: 0 | T67: 0.2525 | U67: 0.25 | V67: 2 | W67: 0 | X67: 1.196141852e-08 | Z67: 7.206901742e-12 | AB67: 6.289942969e-06 | AD67: 0 | AF67: 6.392680476e-05 | AH67: 6.784394452e-05 | AK67: 0.000106487169 | AL67: 0.001931774026 | AN67: 1.367611357e-09 | AP67: 0.001519299969 | AR67: 0.001093571704 | AT67: 0.189214295 | AU67: 0.185464295 | AV67: 0 | AW67: 0 | AX67: 1.039870663e-05 | AY67: 0.0005087975198 | BA67: 1.034210526 | BB67: 1.208299857 | BC67: 1.203777218 | BD67: 0 | BE67: 0 | BF67: 0.005853264258 | BG67: 0.005853264258 | BH67: 3.358892399e-07 | BJ67: 0.9669211196
A68: 1957-08-19 | B68: 3.93 | C68: 0 | D68: 0 | E68: 0.001704225352 | F68: 0 | G68: 0.00065 | H68: 0.0007857050175 | I68: -3.23653076 | J68: 138.9359206 | K68: 26.82520371 | L68: 0.00229303685 | AT68: 0.196714295 | AU68: 0.192964295 | AV68: 0 | AW68: 0 | AX68: 5.056697321e-06 | AY68: 0.0004093021138 | BA68: 1 | BB68: 1.217396175 | BC68: 1.212839488 | BD68: 0 | BE68: 0 | BF68: 0.005770948136 | BG68: 0.005770948136 | BH68: 3.265082587e-07 | BJ68: 1
A69: 1957-09-19 | B69: 3.92 | C69: -0.01 | D69: 0.01 | E69: 0.008295774648 | F69: -0.002547772079 | G69: 0.002547772079 | H69: 0.001762067061 | I69: -3.239078532 | J69: 142.6393368 | K69: 27.29980473 | L69: 0.002391274119 | AT69: 0.204214295 | AU69: 0.200464295 | AV69: 0 | AW69: 0 | AX69: 2.389980545e-06 | AY69: 0.0003292505857 | BA69: 0.9974554707 | BB69: 1.226560971 | BC69: 1.221969981 | BD69: 0 | BE69: 0 | BF69: 0.005690356869 | BG69: 0.005690356869 | BH69: 3.174525617e-07 | BJ69: 1.00255102
A70: 1957-10-19 | B70: 3.97 | C70: 0.05 | D70: 0.05 | E70: 0.05170422535 | F70: 0.0126744409 | G70: 0.0126744409 | H70: 0.01346014591 | I70: -3.226404091 | J70: 124.9130676 | K70: 24.98840767 | L70: 0.001935139046 | AT70: 0.211714295 | AU70: 0.207964295 | AV70: 0 | AW70: 0 | AX70: 1.097896739e-06 | AY70: 0.0002648462913 | BA70: 1.012755102 | BB70: 1.235794762 | BC70: 1.23116921 | BD70: 0 | BE70: 0 | BF70: 0.005611442594 | BG70: 0.005611442594 | BH70: 3.087087057e-07 | BJ70: 0.9874055416
A71: 1957-11-19 | B71: 3.72 | C71: -0.25 | D71: 0.25 | E71: 0.2482957746 | F71: -0.06504242641 | G71: 0.06504242641 | H71: 0.0642567214 | I71: -3.291446518 | J71: 235.942536 | K71: 38.18306868 | L71: 0.005337970308 | AT71: 0.219214295 | AU71: 0.215464295 | AV71: 0 | AW71: 0 | AX71: 4.901942534e-07 | AY71: 0.000213033098 | BA71: 0.9370277078 | BB71: 1.245098066 | BC71: 1.240437692 | BD71: 0 | BE71: 0 | BF71: 0.005534159096 | BG71: 0.005534159096 | BH71: 3.002638912e-07 | BJ71: 1.067204301
A72: 1957-12-19 | B72: 3.21 | C72: -0.51 | D72: 0.51 | E72: 0.5082957746 | F72: -0.1474527311 | G72: 0.1474527311 | H72: 0.1466670261 | I72: -3.438899249 | J72: 722.9104179 | K72: 80.5482895 | L72: 0.03270493255 | AT72: 0.226714295 | AU72: 0.222964295 | AV72: 0 | AW72: 0 | AX72: 2.127231064e-07 | AY72: 0.0001713511739 | BA72: 0.8629032258 | BB72: 1.254471408 | BC72: 1.24977595 | BD72: 0 | BE72: 0 | BF72: 0.005458461743 | BG72: 0.005458461743 | BH72: 2.921059275e-07 | BJ72: 1.158878505
A73: 1958-01-19 | B73: 3.09 | C73: -0.12 | D73: 0.12 | E73: 0.1182957746 | F73: -0.03809984623 | G73: 0.03809984623 | H73: 0.03731414121 | I73: -3.476999095 | J73: 915.0076616 | K73: 94.25038951 | L73: 0.04836277519 | AT73: 0.234214295 | AU73: 0.230464295 | AV73: 0 | AW73: 0 | AX73: 8.972231702e-08 | AY73: 0.000137820801 | BA73: 0.9626168224 | BB73: 1.263915314 | BC73: 1.259184507 | BD73: 0 | BE73: 0 | BF73: 0.005384307418 | BG73: 0.005384307418 | BH73: 2.842231997e-07 | BJ73: 1.038834951
A74: 1958-02-19 | B74: 3.05 | C74: -0.04 | D74: 0.04 | E74: 0.03829577465 | F74: -0.01302950029 | G74: 0.01302950029 | H74: 0.01224379527 | I74: -3.490028595 | J74: 987.7886491 | K74: 99.18424402 | L74: 0.05497449913 | AT74: 0.241714295 | AU74: 0.237964295 | AV74: 0 | AW74: 0 | AX74: 3.678119254e-08 | AY74: 0.0001108487823 | BA74: 0.9870550162 | BB74: 1.273430315 | BC74: 1.268663894 | BD74: 0 | BE74: 0 | BF74: 0.00531165446 | BG74: 0.00531165446 | BH74: 2.766046382e-07 | BJ74: 1.013114754
A75: 1958-03-19 | B75: 2.98 | C75: -0.07 | D75: 0.07 | E75: 0.06829577465 | F75: -0.0232182901 | G75: 0.0232182901 | H75: 0.02243258508 | I75: -3.513246885 | J75: 1126.760644 | K75: 108.2815456 | L75: 0.06862383392 | AT75: 0.249214295 | AU75: 0.245464295 | AV75: 0 | AW75: 0 | AX75: 1.46551582e-08 | AY75: 8.915306309e-05 | BA75: 0.9770491803 | BB75: 1.283016948 | BC75: 1.278214644 | BD75: 0 | BE75: 0 | BF75: 0.005240462604 | BG75: 0.005240462604 | BH75: 2.692396892e-07 | BJ75: 1.023489933
A76: 1958-04-19 | B76: 2.88 | C76: -0.1 | D76: 0.1 | E76: 0.09829577465 | F76: -0.03413300637 | G76: 0.03413300637 | H76: 0.03334730135 | I76: -3.547379892 | J76: 1353.267357 | K76: 122.3458016 | L76: 0.09373446622 | AT76: 0.256714295 | AU76: 0.252964295 | AW76: =AV76/685 ->  | BA76: 0.966442953 | BB76: 1.29267575 | BC76: 1.287837294 | BE76: =BD76/710 ->  | BF76: 0.005170692927 | BG76: 0.005170692927 | BJ76: 1.034722222
A77: 1958-05-19 | B77: 2.92 | C77: 0.04 | D77: 0.04 | E77: 0.04170422535 | F77: 0.01379332213 | G77: 0.01379332213 | H77: 0.01457902715 | I77: -3.53358657 | J77: 1258.501296 | K77: 116.5652532 | L77: 0.08279767721 | AT77: 0.264214295 | AU77: 0.260464295 | AX77: =NORMDIST(AT77,F$734,F$736,TRUE)-NORMDIST(AT76,F$734,F$736,TRUE) -> 2.136179678e-09 | AY77: =IF(AT77 <0,0.5*(1-GAMMADIST(ABS(AT77-$F$734),AK$11,AK$12,TRUE))-0.5*(1-GAMMADIST(ABS(AT76-$F$734),AK$11,AK$12,TRUE)),0.5*(GAMMADIST(ABS(AT77-$F$734),AK$11,AK$12,TRUE))-0.5*( GAMMADIST(ABS(AT76-$F$734),AK$11,AK$12,TRUE))) -> 5.766563139e-05 | BA77: 1.013888889 | BB77: 1.302407266 | BC77: 1.297532385 | BF77: 0.005102307794 | BG77: 0.005102307794 | BJ77: 0.9863013699
A78: 1958-06-19 | B78: 2.97 | C78: 0.05 | D78: 0.05 | E78: 0.05170422535 | F78: 0.01697833653 | G78: 0.01697833653 | H78: 0.01776404155 | I78: -3.516608233 | J78: 1147.881473 | K78: 109.6304923 | L78: 0.07081546114 | AT78: 0.271714295 | AU78: 0.267964295 | AX78: 7.814842107e-10 | AY78: 4.637603624e-05 | BA78: 1.017123288 | BB78: 1.312212042 | BC78: 1.307300462 | BF78: 0.005035270805 | BG78: 0.005035270805 | BJ78: 0.9831649832
A79: 1958-07-19 | B79: 3.2 | C79: 0.23 | D79: 0.23 | E79: 0.2317042254 | F79: 0.07458885699 | G79: 0.07458885699 | H79: 0.07537456201 | I79: -3.442019376 | J79: 737.5102155 | K79: 81.62916615 | L79: 0.03380265985 | AT79: 0.279214295 | AU79: 0.275464295 | AX79: 2.778699493e-10 | AY79: 3.729594961e-05 | BA79: 1.077441077 | BB79: 1.322090631 | BC79: 1.317142075 | BF79: 0.00496954675 | BG79: 0.00496954675 | BJ79: 0.928125
A80: 1958-08-19 | B80: 3.54 | C80: 0.34 | D80: 0.34 | E80: 0.3417042254 | F80: 0.1009759173 | G80: 0.1009759173 | H80: 0.1017616224 | I80: -3.341043459 | J80: 358.9003695 | K80: 50.5028558 | L80: 0.01045958986 | AT80: 0.286714295 | AU80: 0.282964295 | AX80: 9.602896256e-11 | AY80: 2.999311946e-05 | BA80: 1.10625 | BB80: 1.332043588 | BC80: 1.327057778 | BF80: 0.004905101561 | BG80: 0.004905101561 | BJ80: 0.9039548023
A81: 1958-09-19 | B81: 3.76 | C81: 0.22 | D81: 0.22 | E81: =ABS(C81-C$734) -> 0.2217042254 | F81: 0.06029223026 | G81: 0.06029223026 | H81: =IF(F81=F$734,0.00065,ABS(F81-F$734)) -> 0.06107793527 | I81: =LN(B81/100) -> -3.280751229 | J81: =(B81-$B$734)^6 -> 214.0597108 | K81: =($B81-$B$734)^4 -> 35.78408825 | L81: =($I81-$I$734)^6 -> 0.004569234254 | AT81: 0.294214295 | AU81: 0.290464295 | AX81: 3.225530953e-11 | AY81: 2.411981386e-05 | BA81: 1.062146893 | BB81: =EXP(AT81) -> 1.342071472 | BC81: 1.337048129 | BE81: =BD81/710 ->  | BF81: =IF(ISERR(BG81),0,BG81) -> 0.004841902267 | BG81: 0.004841902267 | BJ81: 0.9414893617
A82: 1958-10-19 | B82: 3.8 | C82: =B82-B81 -> 0.04 | D82: =ABS(C82) -> 0.04 | E82: 0.04170422535 | F82: 0.01058210933 | G82: =IF(F82=0,0.00065,ABS(F82)) -> 0.01058210933 | H82: 0.01136781435 | I82: -3.270169119 | J82: 193.8949813 | K82: 33.49996697 | L82: 0.003901729897 | AT82: =AT81+0.0075 -> 0.301714295 | AU82: 0.297964295 | AW82: =AV82/685 ->  | AX82: 1.053024334e-11 | AY82: 1.939630491e-05 | BA82: =B82/B81 -> 1.010638298 | BB82: 1.352174848 | BC82: =EXP(AU82) -> 1.347113688 | BF82: 0.004779916954 | BG82: =1-(BF$13/(LN(BB82)+BF$13))^BF$12-(1-(BF$13/(LN(BB81)+BF$13))^BF$12) -> 0.004779916954 | BH82: =((BE82-BF82)^2)/102 ->  | BJ82: =1/BA82 -> 0.9894736842
A83: 1958-11-19 | B83: 3.74 | C83: -0.06 | D83: 0.06 | E83: 0.05829577465 | F83: =LN(B83/B82) -> -0.01591545531 | G83: 0.01591545531 | H83: 0.01512975029 | I83: -3.286084575 | J83: 224.7792949 | K83: 36.9689858 | L83: 0.004940128879 | AT83: 0.309214295 | AU83: 0.305464295 | AX83: 3.341327215e-12 | AY83: 1.559757743e-05 | BA83: 0.9842105263 | BB83: 1.362354285 | BC83: 1.357255023 | BF83: 0.004719114724 | BG83: 0.004719114724 | BJ83: 1.016042781
A84: 1958-12-19 | B84: 3.86 | C84: 0.12 | D84: 0.12 | E84: 0.1217042254 | F84: 0.03158157205 | G84: 0.03158157205 | H84: 0.03236727707 | I84: -3.254503003 | J84: 166.6309146 | K84: 30.28101201 | L84: 0.003063976832 | AT84: 0.316714295 | AU84: 0.312964295 | AX84: 1.030509011e-12 | AY84: 1.254263339e-05 | BA84: 1.032085561 | BB84: 1.372610354 | BC84: 1.367472705 | BF84: 0.004659465653 | BG84: 0.004659465653 | BJ84: 0.9689119171
A85: 1959-01-19 | B85: 4.02 | C85: 0.16 | D85: 0.16 | E85: 0.1617042254 | F85: 0.04061471915 | G85: 0.04061471915 | H85: 0.04140042417 | I85: -3.213888283 | J85: 109.0618663 | K85: 22.82698833 | L85: 0.001558289033 | AT85: 0.324214295 | AU85: 0.320464295 | AX85: 3.088640455e-13 | AY85: 1.008588585e-05 | BA85: 1.041450777 | BB85: 1.382943633 | BC85: 1.377767306 | BF85: 0.00460094076 | BG85: 0.00460094076 | BJ85: 0.960199005
A86: 1959-02-19 | B86: 3.96 | C86: -0.06 | D86: 0.06 | E86: 0.05829577465 | F86: -0.01503787736 | G86: 0.01503787736 | H86: 0.01425217235 | I86: -3.228926161 | J86: 128.3029325 | K86: 25.43847399 | L86: 0.002019588464 | AT86: 0.331714295 | AU86: 0.327964295 | AX86: 9.00390873e-14 | AY86: 8.110234267e-06 | BA86: 0.9850746269 | BB86: 1.393354703 | BC86: 1.388139408 | BF86: 0.004543511968 | BG86: 0.004543511968 | BJ86: 1.015151515
A87: 1959-03-19 | B87: 3.99 | C87: 0.03 | D87: 0.03 | E87: 0.03170422535 | F87: 0.007547205635 | G87: 0.007547205635 | H87: 0.008332910653 | I87: -3.221378955 | J87: 118.3569058 | K87: 24.10621739 | L87: 0.001775628504 | AT87: 0.339214295 | AU87: 0.335464295 | AX87: 2.542410726e-14 | AY87: 6.521493261e-06 | BA87: 1.007575758 | BB87: 1.40384415 | BC87: 1.398589593 | BF87: 0.004487152072 | BG87: 0.004487152072 | BJ87: 0.992481203
A88: 1959-04-19 | B88: 4.12 | C88: 0.13 | D88: 0.13 | E88: 0.1317042254 | F88: 0.03206193246 | G88: 0.03206193246 | H88: 0.03284763748 | I88: -3.189317023 | J88: 82.34682759 | K88: 18.9277031 | L88: 0.0009942048336 | AT88: 0.346714295 | AU88: 0.342964295 | AX88: 6.994405055e-15 | AY88: 5.243910276e-06 | BA88: 1.032581454 | BB88: 1.414412563 | BC88: 1.409118448 | BF88: 0.004431834703 | BG88: 0.004431834703 | BJ88: 0.9684466019
A89: 1959-05-19 | B89: 4.31 | C89: 0.19 | D89: 0.19 | E89: 0.1917042254 | F89: 0.04508474075 | G89: 0.04508474075 | H89: 0.04587044577 | I89: -3.144232282 | J89: 46.42662347 | K89: 12.91748798 | L89: 0.0003946813032 | AT89: 0.354214295 | AU89: 0.350464295 | AX89: 1.887379142e-15 | AY89: 4.21655976e-06 | BA89: 1.046116505 | BB89: 1.425060537 | BC89: 1.419726568 | BF89: 0.004377534304 | BG89: 0.004377534304 | BJ89: 0.9559164733
A90: 1959-06-19 | B90: 4.34 | C90: 0.03 | D90: 0.03 | E90: 0.03170422535 | F90: 0.006936443997 | G90: 0.006936443997 | H90: 0.007722149014 | I90: -3.137295838 | J90: 42.189338 | K90: 12.11904712 | L90: 0.0003377850158 | AT90: 0.361714295 | AU90: 0.357964295 | AX90: 0 | AY90: 3.390441319e-06 | BA90: 1.006960557 | BB90: 1.435788671 | BC90: 1.430414547 | BF90: 0.004324226094 | BG90: 0.004324226094 | BJ90: 0.9930875576
A91: 1959-07-19 | B91: 4.4 | C91: 0.06 | D91: 0.06 | E91: 0.06170422535 | F91: 0.01373019281 | G91: 0.01373019281 | H91: 0.01451589783 | I91: -3.123565645 | J91: 34.67611824 | K91: 10.63376316 | L91: 0.0002451396849 | AT91: 0.369214295 | AU91: 0.365464295 | AX91: 0 | AY91: 2.72614809e-06 | BA91: 1.013824885 | BB91: 1.446597569 | BC91: 1.441182987 | BF91: 0.004271886043 | BG91: 0.004271886043 | BJ91: 0.9863636364
A92: 1959-08-19 | B92: 4.43 | C92: 0.03 | D92: 0.03 | E92: 0.03170422535 | F92: 0.006795043133 | G92: 0.006795043133 | H92: 0.00758074815 | I92: -3.116770602 | J92: 31.36007593 | K92: 9.944540872 | L92: 0.0002078057884 | AT92: 0.376714295 | AU92: 0.372964295 | AX92: 0 | AY92: 2.191987452e-06 | BA92: 1.006818182 | BB92: 1.457487838 | BC92: 1.452032494 | BF92: 0.004220490845 | BG92: 0.004220490845 | BJ92: 0.993227991
A93: 1959-09-19 | B93: 4.68 | C93: 0.25 | D93: 0.25 | E93: 0.2517042254 | F93: 0.05489852587 | G93: 0.05489852587 | H93: 0.05568423089 | I93: -3.061872076 | J93: 12.61829149 | K93: 5.420013526 | L93: 4.48275791e-05 | AT93: 0.384214295 | AU93: 0.380464295 | AX93: 0 | AY93: 1.762472196e-06 | BA93: 1.056433409 | BB93: 1.468460092 | BC93: 1.462963678 | BF93: 0.004170017889 | BG93: 0.004170017889 | BJ93: 0.9465811966
A94: 1959-10-19 | B94: 4.53 | C94: -0.15 | D94: 0.15 | E94: 0.1482957746 | F94: -0.03257617043 | G94: 0.03257617043 | H94: 0.03179046542 | I94: -3.094448246 | J94: 22.14862018 | K94: 7.886744722 | L94: 0.0001166746026 | AT94: 0.391714295 | AU94: 0.387964295 | AX94: 0 | AY94: 1.41710571e-06 | BA94: 0.9679487179 | BB94: 1.479514946 | BC94: 1.473977155 | BF94: 0.004120445238 | BG94: 0.004120445238 | BJ94: 1.033112583
A95: 1959-11-19 | B95: 4.53 | C95: 0 | D95: 0 | E95: 0.001704225352 | F95: 0 | G95: 0.00065 | H95: 0.0007857050175 | I95: -3.094448246 | J95: 22.14862018 | K95: 7.886744722 | L95: 0.0001166746026 | AT95: 0.399214295 | AU95: 0.395464295 | AX95: 0 | AY95: 1.139405066e-06 | BA95: 1 | BB95: 1.490653024 | BC95: 1.485073543 | BF95: 0.004071751604 | BG95: 0.004071751604 | BJ95: 1
A96: 1959-12-19 | B96: 4.69 | C96: 0.16 | D96: 0.16 | E96: 0.1617042254 | F96: 0.03471064296 | G96: 0.03471064296 | H96: 0.03549634798 | I96: -3.059737604 | J96: 12.13015658 | K96: 5.27931535 | L96: 4.186652909e-05 | AT96: 0.406714295 | AU96: 0.402964295 | AX96: 0 | AY96: 9.161152688e-07 | BA96: 1.035320088 | BB96: 1.501874951 | BC96: 1.496253467 | BF96: 0.004023916324 | BG96: 0.004023916324 | BJ96: 0.9658848614
A97: 1960-01-19 | B97: 4.72 | C97: 0.03 | D97: 0.03 | E97: 0.03170422535 | F97: 0.006376217139 | G97: 0.006376217139 | H97: 0.007161922157 | I97: -3.053361386 | J97: 10.75913649 | K97: 4.873619412 | L97: 3.397364694e-05 | AT97: 0.414214295 | AU97: 0.410464295 | AX97: 0 | AY97: 7.365772808e-07 | BA97: 1.006396588 | BB97: 1.513181359 | BC97: 1.507517555 | BF97: 0.003976919337 | BG97: 0.003976919337 | BJ97: 0.9936440678
A98: 1960-02-19 | B98: 4.49 | C98: -0.23 | D98: 0.23 | E98: 0.2282957746 | F98: -0.04995609784 | G98: 0.04995609784 | H98: 0.04917039283 | I98: -3.103317484 | J98: 25.51603705 | K98: 8.667133433 | L98: 0.000147735137 | AT98: 0.421714295 | AU98: 0.417964295 | AX98: 0 | AY98: 5.92219735e-07 | BA98: 0.9512711864 | BB98: 1.524572884 | BC98: 1.518866442 | BF98: 0.003930741167 | BG98: 0.003930741167 | BJ98: 1.051224944
A99: 1960-03-19 | B99: 4.25 | C99: -0.24 | D99: 0.24 | E99: 0.2382957746 | F99: -0.05493371882 | G99: 0.05493371882 | H99: 0.0541480138 | I99: -3.158251203 | J99: 55.97038171 | K99: 14.63206132 | L99: 0.0005342569297 | AT99: 0.429214295 | AU99: 0.425464295 | AX99: 0 | AY99: 4.76150144e-07 | BA99: 0.9465478842 | BB99: 1.536050167 | BC99: 1.530300766 | BF99: 0.0038853629 | BG99: 0.0038853629 | BJ99: 1.056470588
A100: 1960-04-19 | B100: 4.28 | C100: 0.03 | D100: 0.03 | E100: 0.03170422535 | F100: 0.007034026657 | G100: 0.007034026657 | H100: 0.007819731675 | I100: -3.151217176 | J100: 51.01276845 | K100: 13.75474665 | L100: 0.0004598301386 | AT100: 0.436714295 | AU100: 0.432964295 | AX100: 0 | AY100: 3.828261316e-07 | BA100: 1.007058824 | BB100: 1.547613853 | BC100: 1.541821169 | BF100: 0.003840766164 | BG100: 0.003840766164 | BJ100: 0.9929906542
A101: 1960-05-19 | B101: 4.35 | C101: 0.07 | D101: 0.07 | E101: 0.07170422535 | F101: 0.01622283551 | G101: 0.01622283551 | H101: 0.01700854052 | I101: -3.134994341 | J101: 40.85067776 | K101: 11.86131513 | L101: 0.000320490825 | AT101: 0.444214295 | AU101: 0.440464295 | AX101: 0 | AY101: 3.077910285e-07 | BA101: 1.01635514 | BB101: 1.559264592 | BC101: 1.5534283 | BF101: 0.003796933112 | BG101: 0.003796933112 | BJ101: 0.983908046
A102: 1960-06-19 | B102: 4.15 | C102: -0.2 | D102: 0.2 | E102: 0.1982957746 | F102: -0.04706751086 | G102: 0.04706751086 | H102: 0.04628180584 | I102: -3.182061852 | J102: 75.49118163 | K102: 17.86203004 | L102: 0.0008648411269 | AT102: 0.451714295 | AU102: 0.447964295 | AX102: 0 | AY102: 2.474612349e-07 | BA102: 0.9540229885 | BB102: 1.571003041 | BC102: 1.565122812 | BF102: 0.003753846404 | BG102: 0.003753846404 | BJ102: 1.048192771
A103: 1960-07-19 | B103: 3.9 | C103: -0.25 | D103: 0.25 | E103: 0.2482957746 | F103: -0.06213178111 | G103: 0.06213178111 | H103: 0.06134607609 | I103: -3.244193633 | J103: 150.293315 | K103: 28.26787154 | L103: 0.002599116413 | AT103: 0.459214295 | AU103: 0.455464295 | AX103: 0 | AY103: 1.989552195e-07 | BA103: 0.9397590361 | BB103: 1.582829859 | BC103: 1.576905362 | BF103: 0.003711489189 | BG103: 0.003711489189 | BJ103: 1.064102564
A104: 1960-08-19 | B104: 3.8 | C104: -0.1 | D104: 0.1 | E104: 0.09829577465 | F104: -0.0259754864 | G104: 0.0259754864 | H104: 0.02518978139 | I104: -3.270169119 | J104: 193.8949813 | K104: 33.49996697 | L104: 0.003901729897 | AT104: 0.466714295 | AU104: 0.462964295 | AX104: 0 | AY104: 1.599560019e-07 | BA104: 0.9743589744 | BB104: 1.594745711 | BC104: 1.588776614 | BF104: 0.003669845089 | BG104: 0.003669845089 | BJ104: 1.026315789
A105: 1960-09-19 | B105: 3.8 | C105: 0 | D105: 0 | E105: 0.001704225352 | F105: 0 | G105: 0.00065 | H105: 0.0007857050175 | I105: -3.270169119 | J105: 193.8949813 | K105: 33.49996697 | L105: 0.003901729897 | AT105: 0.474214295 | AU105: 0.470464295 | AX105: 0 | AY105: 1.28600566e-07 | BA105: 1 | BB105: 1.606751269 | BC105: 1.600737235 | BF105: 0.003628898183 | BG105: 0.003628898183 | BJ105: 1
A106: 1960-10-19 | B106: 3.89 | C106: 0.09 | D106: 0.09 | E106: 0.09170422535 | F106: 0.0234080909 | G106: 0.0234080909 | H106: 0.02419379592 | I106: -3.246761028 | J106: 154.246781 | K106: 28.76144752 | L106: 0.002708980054 | AT106: 0.481714295 | AU106: 0.477964295 | AX106: 0 | AY106: 1.033909314e-07 | BA106: 1.023684211 | BB106: 1.618847206 | BC106: 1.612787898 | BF106: 0.003588632992 | BG106: 0.003588632992 | BJ106: 0.9768637532
A107: 1960-11-19 | B107: 3.93 | C107: 0.04 | D107: 0.04 | E107: 0.04170422535 | F107: 0.01023026825 | G107: 0.01023026825 | H107: 0.01101597327 | I107: -3.23653076 | J107: 138.9359206 | K107: 26.82520371 | L107: 0.00229303685 | AT107: 0.489214295 | AU107: 0.485464295 | AX107: 0 | AY107: 8.312264005e-08 | BA107: 1.010282776 | BB107: 1.631034205 | BC107: 1.62492928 | BF107: 0.003549034465 | BG107: 0.003549034465 | BJ107: 0.989821883
A108: 1960-12-19 | B108: 3.84 | C108: -0.09 | D108: 0.09 | E108: 0.08829577465 | F108: -0.02316705928 | G108: 0.02316705928 | H108: 0.02238135426 | I108: -3.259697819 | J108: 175.3386948 | K108: 31.32697878 | L108: 0.003323260413 | AT108: 0.496714295 | AU108: 0.492964295 | AX108: 0 | AY108: 6.682725229e-08 | BA108: 0.9770992366 | BB108: 1.643312949 | BC108: 1.637162065 | BF108: 0.003510087963 | BG108: 0.003510087963 | BJ108: 1.0234375
A109: 1961-01-19 | B109: 3.84 | C109: 0 | D109: 0 | E109: 0.001704225352 | F109: 0 | G109: 0.00065 | H109: 0.0007857050175 | I109: -3.259697819 | J109: 175.3386948 | K109: 31.32697878 | L109: 0.003323260413 | AT109: 0.504214295 | AU109: 0.500464295 | AX109: 0 | AY109: 5.372610495e-08 | BA109: 1 | BB109: 1.65568413 | BC109: 1.649486941 | BF109: 0.003471779246 | BG109: 0.003471779246 | BJ109: 1
A110: 1961-02-19 | B110: 3.78 | C110: -0.06 | D110: 0.06 | E110: 0.05829577465 | F110: -0.01574835697 | G110: 0.01574835697 | H110: 0.01496265195 | I110: -3.275446176 | J110: 203.7695645 | K110: 34.62790454 | L110: 0.004223623947 | AT110: 0.511714295 | AU110: 0.507964295 | AX110: 0 | AY110: 4.319312796e-08 | BA110: 0.984375 | BB110: 1.668148444 | BC110: 1.661904602 | BF110: 0.003434094463 | BG110: 0.003434094463 | BJ110: 1.015873016
A111: 1961-03-19 | B111: 3.74 | C111: -0.04 | D111: 0.04 | E111: 0.03829577465 | F111: -0.01063839821 | G111: 0.01063839821 | H111: 0.009852693188 | I111: -3.286084575 | J111: 224.7792949 | K111: 36.9689858 | L111: 0.004940128879 | AT111: 0.519214295 | AU111: 0.515464295 | AX111: 0 | AY111: 3.472494592e-08 | BA111: 0.9894179894 | BB111: 1.680706591 | BC111: 1.674415744 | BF111: 0.003397020136 | BG111: 0.003397020136 | BJ111: 1.010695187
A112: 1961-04-19 | B112: 3.78 | C112: 0.04 | D112: 0.04 | E112: 0.04170422535 | F112: 0.01063839821 | G112: 0.01063839821 | H112: 0.01142410322 | I112: -3.275446176 | J112: 203.7695645 | K112: 34.62790454 | L112: 0.004223623947 | AT112: 0.526714295 | AU112: 0.522964295 | AX112: 0 | AY112: 2.791683562e-08 | BA112: 1.010695187 | BB112: 1.693359279 | BC112: 1.687021073 | BF112: 0.003360543148 | BG112: 0.003360543148 | BJ112: 0.9894179894
A113: 1961-05-19 | B113: 3.71 | C113: -0.07 | D113: 0.07 | E113: 0.06829577465 | F113: -0.01869213301 | G113: 0.01869213301 | H113: 0.01790642799 | I113: -3.294138309 | J113: 241.695067 | K113: 38.80120303 | L113: 0.005547542724 | AT113: 0.534214295 | AU113: 0.530464295 | AX113: 0 | AY113: 2.244339514e-08 | BA113: 0.9814814815 | BB113: 1.706107218 | BC113: 1.699721298 | BF113: 0.003324650733 | BG113: 0.003324650733 | BJ113: 1.018867925
A114: 1961-06-19 | B114: 3.88 | C114: 0.17 | D114: 0.17 | E114: 0.1717042254 | F114: 0.04480327702 | G114: 0.04480327702 | H114: 0.04558898203 | I114: -3.249335032 | J114: 158.2865331 | K114: 29.26145909 | L114: 0.002822984375 | AT114: 0.541714295 | AU114: 0.537964295 | AX114: 0 | AY114: 1.804299965e-08 | BA114: 1.045822102 | BB114: 1.718951127 | BC114: 1.712517132 | BF114: 0.003289330465 | BG114: 0.003289330465 | BJ114: 0.956185567
A115: 1961-07-19 | B115: 3.92 | C115: 0.04 | D115: 0.04 | E115: 0.04170422535 | F115: 0.01025650017 | G115: 0.01025650017 | H115: 0.01104220518 | I115: -3.239078532 | J115: 142.6393368 | K115: 27.29980473 | L115: 0.002391274119 | AT115: 0.549214295 | AU115: 0.545464295 | AX115: 0 | AY115: 1.450530301e-08 | BA115: 1.010309278 | BB115: 1.731891727 | BC115: 1.725409295 | BF115: 0.003254570246 | BG115: 0.003254570246 | BJ115: 0.9897959184
A116: 1961-08-19 | B116: 4.04 | C116: 0.12 | D116: 0.12 | E116: 0.1217042254 | F116: 0.03015303817 | G116: 0.03015303817 | H116: 0.03093874319 | I116: -3.208925494 | J116: 103.2097171 | K116: 22.00292365 | L116: 0.001426883932 | AT116: 0.556714295 | AU116: 0.552964295 | AX116: 0 | AY116: 1.166118824e-08 | BA116: 1.030612245 | BB116: 1.744929747 | BC116: 1.738398514 | BF116: 0.003220358296 | BG116: 0.003220358296 | BJ116: 0.9702970297
A117: 1961-09-19 | B117: 3.98 | C117: -0.06 | D117: 0.06 | E117: 0.05829577465 | F117: -0.01496287268 | G117: 0.01496287268 | H117: 0.01417716766 | I117: -3.223888367 | J117: 121.5981695 | K117: 24.54433999 | L117: 0.001853854435 | AT117: 0.564214295 | AU117: 0.560464295 | AX117: 0 | AY117: 9.374687526e-09 | BA117: 0.9851485149 | BB117: 1.758065919 | BC117: 1.751485517 | BF117: 0.003186683143 | BG117: 0.003186683143 | BJ117: 1.015075377
A118: 1961-10-19 | B118: 3.92 | C118: -0.06 | D118: 0.06 | E118: 0.05829577465 | F118: -0.01519016549 | G118: 0.01519016549 | H118: 0.01440446048 | I118: -3.239078532 | J118: 142.6393368 | K118: 27.29980473 | L118: 0.002391274119 | AT118: 0.571714295 | AU118: 0.567964295 | AX118: 0 | AY118: 7.536484992e-09 | BA118: 0.9849246231 | BB118: 1.771300983 | BC118: 1.764671043 | BF118: 0.003153533613 | BG118: 0.003153533613 | BJ118: 1.015306122
A119: 1961-11-19 | B119: 3.94 | C119: 0.02 | D119: 0.02 | E119: 0.02170422535 | F119: 0.005089069507 | G119: 0.005089069507 | H119: 0.005874774525 | I119: -3.233989463 | J119: 135.3129814 | K119: 26.35681787 | L119: 0.002198422809 | AT119: 0.579214295 | AU119: 0.575464295 | BA119: 1.005102041 | BB119: 1.784635683 | BC119: 1.777955831 | BJ119: 0.9949238579
A120: 1961-12-19 | B120: 4.06 | C120: 0.12 | D120: 0.12 | E120: 0.1217042254 | F120: 0.0300022503 | G120: 0.0300022503 | H120: 0.03078795532 | I120: -3.203987212 | J120: 97.62162555 | K120: 21.20137479 | L120: 0.001305426225 | BA120: 1.030456853 | BJ120: 0.9704433498
A121: 1962-01-19 | B121: 4.08 | C121: 0.02 | D121: 0.02 | E121: 0.02170422535 | F121: 0.004914014802 | G121: 0.004914014802 | H121: 0.00569971982 | I121: -3.199073198 | J121: 92.28797256 | K121: 20.42192782 | L121: 0.001193242419 | BA121: 1.004926108 | BJ121: 0.9950980392
A122: 1962-02-19 | B122: 4.04 | C122: -0.04 | D122: 0.04 | E122: 0.03829577465 | F122: -0.009852296443 | G122: 0.009852296443 | H122: 0.009066591426 | I122: -3.208925494 | J122: 103.2097171 | K122: 22.00292365 | L122: 0.001426883932 | BA122: 0.9901960784 | BJ122: 1.00990099
A123: 1962-03-19 | B123: 3.93 | C123: -0.11 | D123: 0.11 | E123: 0.1082957746 | F123: -0.02760526609 | G123: 0.02760526609 | H123: 0.02681956107 | I123: -3.23653076 | J123: 138.9359206 | K123: 26.82520371 | L123: 0.00229303685 | BA123: 0.9727722772 | BJ123: 1.027989822
A124: 1962-04-19 | B124: 3.84 | C124: -0.09 | D124: 0.09 | E124: 0.08829577465 | F124: -0.02316705928 | G124: 0.02316705928 | H124: 0.02238135426 | I124: -3.259697819 | J124: 175.3386948 | K124: 31.32697878 | L124: 0.003323260413 | BA124: 0.9770992366 | BJ124: 1.0234375
A125: 1962-05-19 | B125: 3.87 | C125: 0.03 | D125: 0.03 | E125: 0.03170422535 | F125: 0.007782140442 | G125: 0.007782140442 | H125: 0.00856784546 | I125: -3.251915679 | J125: 162.4140711 | K125: 29.76796194 | L125: 0.002941268761 | BA125: 1.0078125 | BJ125: 0.992248062
A126: 1962-06-19 | B126: 3.91 | C126: 0.04 | D126: 0.04 | E126: 0.04170422535 | F126: 0.01028286696 | G126: 0.01028286696 | H126: 0.01106857197 | I126: -3.241632812 | J126: 146.4246541 | K126: 27.78067568 | L126: 0.002493258187 | BA126: 1.010335917 | BJ126: 0.989769821
A127: 1962-07-19 | B127: 4.01 | C127: 0.1 | D127: 0.1 | E127: 0.1017042254 | F127: 0.02525386732 | G127: 0.02525386732 | H127: 0.02603957234 | I127: -3.216378945 | J127: 112.0900422 | K127: 23.2475945 | L127: 0.001627944097 | BA127: 1.025575448 | BJ127: 0.9750623441
A128: 1962-08-19 | B128: 3.98 | C128: -0.03 | D128: 0.03 | E128: 0.02829577465 | F128: -0.007509422022 | G128: 0.007509422022 | H128: 0.006723717005 | I128: -3.223888367 | J128: 121.5981695 | K128: 24.54433999 | L128: 0.001853854435 | BA128: 0.9925187032 | BJ128: 1.007537688
A129: 1962-09-19 | B129: 3.98 | C129: 0 | D129: 0 | E129: 0.001704225352 | F129: 0 | G129: 0.00065 | H129: 0.0007857050175 | I129: -3.223888367 | J129: 121.5981695 | K129: 24.54433999 | L129: 0.001853854435 | BA129: 1 | BJ129: 1
A130: 1962-10-19 | B130: 3.93 | C130: -0.05 | D130: 0.05 | E130: 0.04829577465 | F130: -0.01264239342 | G130: 0.01264239342 | H130: 0.0118566884 | I130: -3.23653076 | J130: 138.9359206 | K130: 26.82520371 | L130: 0.00229303685 | BA130: 0.9874371859 | BJ130: 1.012722646
A131: 1962-11-19 | B131: 3.92 | C131: -0.01 | D131: 0.01 | E131: 0.008295774648 | F131: -0.002547772079 | G131: 0.002547772079 | H131: 0.001762067061 | I131: -3.239078532 | J131: 142.6393368 | K131: 27.29980473 | L131: 0.002391274119 | BA131: 0.9974554707 | BJ131: 1.00255102
A132: 1962-12-19 | B132: 3.86 | C132: -0.06 | D132: 0.06 | E132: 0.05829577465 | F132: -0.01542447033 | G132: 0.01542447033 | H132: 0.01463876531 | I132: -3.254503003 | J132: 166.6309146 | K132: 30.28101201 | L132: 0.003063976832 | BA132: 0.9846938776 | BJ132: 1.015544041
A133: 1963-01-19 | B133: 3.83 | C133: -0.03 | D133: 0.03 | E133: 0.02829577465 | F133: -0.007802380284 | G133: 0.007802380284 | H133: 0.007016675267 | I133: -3.262305383 | J133: 179.8327693 | K133: 31.86000856 | L133: 0.003460145434 | BA133: 0.9922279793 | BJ133: 1.007832898
A134: 1963-02-19 | B134: 3.92 | C134: 0.09 | D134: 0.09 | E134: 0.09170422535 | F134: 0.02322685061 | G134: 0.02322685061 | H134: 0.02401255563 | I134: -3.239078532 | J134: 142.6393368 | K134: 27.29980473 | L134: 0.002391274119 | BA134: 1.023498695 | BJ134: 0.9770408163
A135: 1963-03-19 | B135: 3.93 | C135: 0.01 | D135: 0.01 | E135: 0.01170422535 | F135: 0.002547772079 | G135: 0.002547772079 | H135: 0.003333477096 | I135: -3.23653076 | J135: 138.9359206 | K135: 26.82520371 | L135: 0.00229303685 | BA135: 1.00255102 | BJ135: 0.9974554707
A136: 1963-04-19 | B136: 3.97 | C136: 0.04 | D136: 0.04 | E136: 0.04170422535 | F136: 0.01012666882 | G136: 0.01012666882 | H136: 0.01091237384 | I136: -3.226404091 | J136: 124.9130676 | K136: 24.98840767 | L136: 0.001935139046 | BA136: 1.010178117 | BJ136: 0.9899244332
A137: 1963-05-19 | B137: 3.93 | C137: -0.04 | D137: 0.04 | E137: 0.03829577465 | F137: -0.01012666882 | G137: 0.01012666882 | H137: 0.0093409638 | I137: -3.23653076 | J137: 138.9359206 | K137: 26.82520371 | L137: 0.00229303685 | BA137: 0.9899244332 | BJ137: 1.010178117
A138: 1963-06-19 | B138: 3.99 | C138: 0.06 | D138: 0.06 | E138: 0.06170422535 | F138: 0.01515180502 | G138: 0.01515180502 | H138: 0.01593751004 | I138: -3.221378955 | J138: 118.3569058 | K138: 24.10621739 | L138: 0.001775628504 | BA138: 1.015267176 | BJ138: 0.984962406
A139: 1963-07-19 | B139: 4.02 | C139: 0.03 | D139: 0.03 | E139: 0.03170422535 | F139: 0.007490671729 | G139: 0.007490671729 | H139: 0.008276376747 | I139: -3.213888283 | J139: 109.0618663 | K139: 22.82698833 | L139: 0.001558289033 | BA139: 1.007518797 | BJ139: 0.9925373134
A140: 1963-08-19 | B140: 4 | C140: -0.02 | D140: 0.02 | E140: 0.01829577465 | F140: -0.004987541511 | G140: 0.004987541511 | H140: 0.004201836494 | I140: -3.218875825 | J140: 115.1879623 | K140: 23.67398658 | L140: 0.001700358327 | BA140: 0.9950248756 | BJ140: 1.005
A141: 1963-09-19 | B141: 4.08 | C141: 0.08 | D141: 0.08 | E141: 0.08170422535 | F141: 0.0198026273 | G141: 0.0198026273 | H141: 0.02058833231 | I141: -3.199073198 | J141: 92.28797256 | K141: 20.42192782 | L141: 0.001193242419 | BA141: 1.02 | BJ141: 0.9803921569
A142: 1963-10-19 | B142: 4.11 | C142: 0.03 | D142: 0.03 | E142: 0.03170422535 | F142: 0.007326040092 | G142: 0.007326040092 | H142: 0.00811174511 | I142: -3.191747157 | J142: 84.74417538 | K142: 19.29330243 | L142: 0.001040982131 | BA142: 1.007352941 | BJ142: 0.9927007299
A143: 1963-11-19 | B143: 4.12 | C143: 0.01 | D143: 0.01 | E143: 0.01170422535 | F143: 0.002430134853 | G143: 0.002430134853 | H143: 0.003215839871 | I143: -3.189317023 | J143: 82.34682759 | K143: 18.9277031 | L143: 0.0009942048336 | BA143: 1.00243309 | BJ143: 0.9975728155
A144: 1963-12-19 | B144: 4.13 | C144: 0.01 | D144: 0.01 | E144: 0.01170422535 | F144: 0.002424243612 | G144: 0.002424243612 | H144: 0.003209948629 | I144: -3.186892779 | J144: 80.00626422 | K144: 18.56732452 | L144: 0.0009492994866 | BA144: 1.002427184 | BJ144: 0.9975786925
A145: 1964-01-19 | B145: 4.17 | C145: 0.04 | D145: 0.04 | E145: =ABS(C145-C$734) -> 0.04170422535 | F145: 0.009638628838 | G145: 0.009638628838 | H145: =IF(F145=F$734,0.00065,ABS(F145-F$734)) -> 0.01042433386 | I145: =LN(B145/100) -> -3.17725415 | J145: =(B145-$B$734)^6 -> 71.19046369 | K145: =($B145-$B$734)^4 -> 17.17702236 | L145: =($I145-$I$734)^6 -> 0.0007871005862 | BA145: 1.00968523 | BJ145: 0.9904076739
A146: 1964-02-19 | B146: 4.15 | C146: =B146-B145 -> -0.02 | D146: =ABS(C146) -> 0.02 | E146: 0.01829577465 | F146: -0.004807701568 | G146: =IF(F146=0,0.00065,ABS(F146)) -> 0.004807701568 | H146: 0.004021996551 | I146: -3.182061852 | J146: 75.49118163 | K146: 17.86203004 | L146: 0.0008648411269 | BA146: =B146/B145 -> 0.9952038369 | BJ146: =1/BA146 -> 1.004819277
A147: 1964-03-19 | B147: 4.22 | C147: 0.07 | D147: 0.07 | E147: 0.07170422535 | F147: =LN(B147/B146) -> 0.01672679381 | G147: 0.01672679381 | H147: 0.01751249882 | I147: -3.165335058 | J147: 61.32315359 | K147: 15.55068964 | L147: 0.0006190964471 | BA147: 1.01686747 | BJ147: 0.9834123223
A148: 1964-04-19 | B148: 4.23 | C148: 0.01 | D148: 0.01 | E148: 0.01170422535 | F148: 0.00236686501 | G148: 0.00236686501 | H148: 0.003152570028 | I148: -3.162968193 | J148: 59.49348189 | K148: 15.23981136 | L148: 0.0005895847885 | BA148: 1.002369668 | BJ148: 0.9976359338
A149: 1964-05-19 | B149: 4.2 | C149: -0.03 | D149: 0.03 | E149: 0.02829577465 | F149: -0.007117467769 | G149: 0.007117467769 | H149: 0.006331762751 | I149: -3.170085661 | J149: 65.12340358 | K149: 16.1866904 | L149: 0.0006820551427 | BA149: 0.9929078014 | BJ149: 1.007142857
A150: 1964-06-19 | B150: 4.17 | C150: -0.03 | D150: 0.03 | E150: 0.02829577465 | F150: -0.007168489479 | G150: 0.007168489479 | H150: 0.006382784461 | I150: -3.17725415 | J150: 71.19046369 | K150: 17.17702236 | L150: 0.0007871005862 | BA150: 0.9928571429 | BJ150: 1.007194245
A151: 1964-07-19 | B151: 4.19 | C151: 0.02 | D151: 0.02 | E151: 0.02170422535 | F151: 0.004784698123 | G151: 0.004784698123 | H151: 0.005570403141 | I151: -3.172469452 | J151: 67.09588991 | K151: 16.51190869 | L151: 0.0007156030089 | BA151: 1.004796163 | BJ151: 0.9952267303
A152: 1964-08-19 | B152: 4.19 | C152: 0 | D152: 0 | E152: 0.001704225352 | F152: 0 | G152: 0.00065 | H152: 0.0007857050175 | I152: -3.172469452 | J152: 67.09588991 | K152: 16.51190869 | L152: 0.0007156030089 | BA152: 1 | BJ152: 1
A153: 1964-09-19 | B153: 4.2 | C153: 0.01 | D153: 0.01 | E153: 0.01170422535 | F153: 0.002383791355 | G153: 0.002383791355 | H153: 0.003169496373 | I153: -3.170085661 | J153: 65.12340358 | K153: 16.1866904 | L153: 0.0006820551427 | BA153: 1.002386635 | BJ153: 0.9976190476
A154: 1964-10-19 | B154: 4.19 | C154: -0.01 | D154: 0.01 | E154: 0.008295774648 | F154: -0.002383791355 | G154: 0.002383791355 | H154: 0.001598086338 | I154: -3.172469452 | J154: 67.09588991 | K154: 16.51190869 | L154: 0.0007156030089 | BA154: 0.9976190476 | BJ154: 1.002386635
A155: 1964-11-19 | B155: 4.15 | C155: -0.04 | D155: 0.04 | E155: 0.03829577465 | F155: -0.009592399691 | G155: 0.009592399691 | H155: 0.008806694674 | I155: -3.182061852 | J155: 75.49118163 | K155: 17.86203004 | L155: 0.0008648411269 | BA155: 0.9904534606 | BJ155: 1.009638554
A156: 1964-12-19 | B156: 4.18 | C156: 0.03 | D156: 0.03 | E156: 0.03170422535 | F156: 0.007202912294 | G156: 0.007202912294 | H156: 0.007988617312 | I156: -3.174858939 | J156: 69.11791318 | K156: 16.84200318 | L156: 0.0007505999201 | BA156: 1.007228916 | BJ156: 0.9928229665
A157: 1965-01-19 | B157: 4.19 | C157: 0.01 | D157: 0.01 | E157: 0.01170422535 | F157: 0.002389487397 | G157: 0.002389487397 | H157: 0.003175192415 | I157: -3.172469452 | J157: 67.09588991 | K157: 16.51190869 | L157: 0.0007156030089 | BA157: 1.002392344 | BJ157: 0.9976133652
A158: 1965-02-19 | B158: 4.21 | C158: 0.02 | D158: 0.02 | E158: 0.02170422535 | F158: 0.00476191376 | G158: 0.00476191376 | H158: 0.005547618778 | I158: -3.167707538 | J158: 63.19947854 | K158: 15.86630006 | L158: 0.00064990337 | BA158: 1.00477327 | BJ158: 0.9952494062
A159: 1965-03-19 | B159: 4.21 | C159: 0 | D159: 0 | E159: 0.001704225352 | F159: 0 | G159: 0.00065 | H159: 0.0007857050175 | I159: -3.167707538 | J159: 63.19947854 | K159: 15.86630006 | L159: 0.00064990337 | BA159: 1 | BJ159: 1
A160: 1965-04-19 | B160: 4.2 | C160: -0.01 | D160: 0.01 | E160: 0.008295774648 | F160: -0.002378122405 | G160: 0.002378122405 | H160: 0.001592417387 | I160: -3.170085661 | J160: 65.12340358 | K160: 16.1866904 | L160: 0.0006820551427 | BA160: 0.9976247031 | BJ160: 1.002380952
A161: 1965-05-19 | B161: 4.21 | C161: 0.01 | D161: 0.01 | E161: 0.01170422535 | F161: 0.002378122405 | G161: 0.002378122405 | H161: 0.003163827422 | I161: -3.167707538 | J161: 63.19947854 | K161: 15.86630006 | L161: 0.00064990337 | BA161: 1.002380952 | BJ161: 0.9976247031
A162: 1965-06-19 | B162: 4.21 | C162: 0 | D162: 0 | E162: 0.001704225352 | F162: 0 | G162: 0.00065 | H162: 0.0007857050175 | I162: -3.167707538 | J162: 63.19947854 | K162: 15.86630006 | L162: 0.00064990337 | BA162: 1 | BJ162: 1
A163: 1965-07-19 | B163: 4.2 | C163: -0.01 | D163: 0.01 | E163: 0.008295774648 | F163: -0.002378122405 | G163: 0.002378122405 | H163: 0.001592417387 | I163: -3.170085661 | J163: 65.12340358 | K163: 16.1866904 | L163: 0.0006820551427 | BA163: 0.9976247031 | BJ163: 1.002380952
A164: 1965-08-19 | B164: 4.25 | C164: 0.05 | D164: 0.05 | E164: 0.05170422535 | F164: 0.01183445765 | G164: 0.01183445765 | H164: 0.01262016266 | I164: -3.158251203 | J164: 55.97038171 | K164: 14.63206132 | L164: 0.0005342569297 | BA164: 1.011904762 | BJ164: 0.9882352941
A165: 1965-09-19 | B165: 4.29 | C165: 0.04 | D165: 0.04 | E165: 0.04170422535 | F165: 0.009367750004 | G165: 0.009367750004 | H165: 0.01015345502 | I165: -3.148883453 | J165: 49.44391762 | K165: 13.47127131 | L165: 0.0004371357704 | BA165: 1.009411765 | BJ165: 0.9906759907
A166: 1965-10-19 | B166: 4.35 | C166: 0.06 | D166: 0.06 | E166: 0.06170422535 | F166: 0.01388911216 | G166: 0.01388911216 | H166: 0.01467481718 | I166: -3.134994341 | J166: 40.85067776 | K166: 11.86131513 | L166: 0.000320490825 | BA166: 1.013986014 | BJ166: 0.9862068966
A167: 1965-11-19 | B167: 4.45 | C167: 0.1 | D167: 0.1 | E167: 0.1017042254 | F167: 0.02272825108 | G167: 0.02272825108 | H167: 0.0235139561 | I167: -3.11226609 | J167: 29.29970242 | K167: 9.504052056 | L167: 0.0001857705504 | BA167: 1.022988506 | BJ167: 0.9775280899
A168: 1965-12-19 | B168: 4.62 | C168: 0.17 | D168: 0.17 | E168: 0.1717042254 | F168: 0.03749060892 | G168: 0.03749060892 | H168: 0.03827631393 | I168: -3.074775481 | J168: 15.90394297 | K168: 6.324165207 | L168: 6.669583173e-05 | BA168: 1.038202247 | BJ168: 0.9632034632
A169: 1966-01-19 | B169: 4.61 | C169: -0.01 | D169: 0.01 | E169: 0.008295774648 | F169: -0.002166848085 | G169: 0.002166848085 | H169: 0.001381143068 | I169: -3.076942329 | J169: 16.51524434 | K169: 6.485199426 | L169: 7.111921542e-05 | BA169: 0.9978354978 | BJ169: 1.002169197
A170: 1966-02-19 | B170: 4.83 | C170: 0.22 | D170: 0.22 | E170: 0.2217042254 | F170: 0.04661861066 | G170: 0.04661861066 | H170: 0.04740431567 | I170: -3.030323718 | J170: 6.781852602 | K170: 3.582879738 | L170: 1.493507631e-05 | BA170: 1.047722343 | BJ170: 0.9544513458
A171: 1966-03-19 | B171: 4.87 | C171: 0.04 | D171: 0.04 | E171: 0.04170422535 | F171: 0.00824746943 | G171: 0.00824746943 | H171: 0.009033174447 | I171: -3.022076249 | J171: 5.681534461 | K171: 3.184029602 | L171: 1.080263462e-05 | BA171: 1.008281573 | BJ171: 0.9917864476
A172: 1966-04-19 | B172: 4.75 | C172: -0.12 | D172: 0.12 | E172: 0.1182957746 | F172: -0.02494931905 | G172: 0.02494931905 | H172: 0.02416361403 | I172: -3.047025568 | J172: 9.519757784 | K172: 4.491767471 | L172: 2.740000734e-05 | BA172: 0.9753593429 | BJ172: 1.025263158
A173: 1966-05-19 | B173: 4.78 | C173: 0.03 | D173: 0.03 | E173: 0.03170422535 | F173: 0.006295928457 | G173: 0.006295928457 | H173: 0.007081633474 | I173: -3.040729639 | J173: 8.401708296 | K173: 4.132806444 | L173: 2.195373595e-05 | BA173: 1.006315789 | BJ173: 0.9937238494
A174: 1966-06-19 | B174: 4.81 | C174: 0.03 | D174: 0.03 | E174: 0.03170422535 | F174: 0.006256537614 | G174: 0.006256537614 | H174: 0.007042242632 | I174: -3.034473102 | J174: 7.395293984 | K174: 3.795802686 | L174: 1.746674912e-05 | BA174: 1.006276151 | BJ174: 0.9937629938
A175: 1966-07-19 | B175: 5.02 | C175: 0.21 | D175: 0.21 | E175: 0.2117042254 | F175: 0.04273284959 | G175: 0.04273284959 | H175: 0.0435185546 | I175: -2.991740252 | J175: 2.780275535 | K175: 1.977236226 | L175: 2.747233645e-06 | BA175: 1.043659044 | BJ175: 0.9581673307
A176: 1966-08-19 | B176: 5.22 | C176: 0.2 | D176: 0.2 | E176: 0.2017042254 | F176: 0.03906746819 | G176: 0.03906746819 | H176: 0.03985317321 | I176: -2.952672784 | J176: 0.9178166517 | K176: 0.9444318435 | L176: 2.482532372e-07 | BA176: 1.039840637 | BJ176: 0.9616858238
A177: 1966-09-19 | B177: 5.18 | C177: -0.04 | D177: 0.04 | E177: 0.03829577465 | F177: -0.007692345623 | G177: 0.007692345623 | H177: 0.006906640606 | I177: -2.96036513 | J177: 1.165194214 | K177: 1.107300628 | L177: 4.327208868e-07 | BA177: 0.9923371648 | BJ177: 1.007722008
A178: 1966-10-19 | B178: 5.01 | C178: -0.17 | D178: 0.17 | E178: 0.1682957746 | F178: -0.03336914117 | G178: 0.03336914117 | H178: 0.03258343616 | I178: -2.993734271 | J178: 2.923952387 | K178: 2.044781298 | L178: 3.036931313e-06 | BA178: 0.9671814672 | BJ178: 1.033932136
A179: 1966-11-19 | B179: 5.16 | C179: 0.15 | D179: 0.15 | E179: 0.1517042254 | F179: 0.0295006644 | G179: 0.0295006644 | H179: 0.03028636941 | I179: -2.964233606 | J179: 1.30831871 | K179: 1.196214424 | L179: 5.618371839e-07 | BA179: 1.02994012 | BJ179: 0.9709302326
A180: 1966-12-19 | B180: 4.84 | C180: -0.32 | D180: 0.32 | E180: 0.3182957746 | F180: -0.06402185876 | G180: 0.06402185876 | H180: 0.06323615375 | I180: -3.028255465 | J180: 6.49141369 | K180: 3.479841993 | L180: 1.379228245e-05 | BA180: 0.9379844961 | BJ180: 1.066115702
A181: 1967-01-19 | B181: 4.58 | C181: -0.26 | D181: 0.26 | E181: 0.2582957746 | F181: -0.0552157226 | G181: 0.0552157226 | H181: 0.05443001758 | I181: -3.083471188 | J181: 18.46786501 | K181: 6.986791679 | L181: 8.595193303e-05 | BA181: 0.9462809917 | BJ181: 1.056768559
A182: 1967-02-19 | B182: 4.63 | C182: 0.05 | D182: 0.05 | E182: 0.05170422535 | F182: 0.01085786997 | G182: 0.01085786997 | H182: 0.01164357499 | I182: -3.072613318 | J182: 15.31161486 | K182: 6.166148756 | L182: 6.251295141e-05 | BA182: 1.010917031 | BJ182: 0.9892008639
A183: 1967-03-19 | B183: 4.54 | C183: -0.09 | D183: 0.09 | E183: 0.08829577465 | F183: -0.01962985604 | G183: 0.01962985604 | H183: 0.01884415103 | I183: -3.092243174 | J183: 21.36735606 | K183: 7.700173747 | L183: 0.0001098632538 | BA183: 0.9805615551 | BJ183: 1.019823789
A184: 1967-04-19 | B184: 4.59 | C184: 0.05 | D184: 0.05 | E184: 0.05170422535 | F184: 0.01095301202 | G184: 0.01095301202 | H184: 0.01173871704 | I184: -3.081290162 | J184: 17.79670844 | K184: 6.816474122 | L184: 8.073482736e-05 | BA184: 1.011013216 | BJ184: 0.9891067538
A185: 1967-05-19 | B185: 4.85 | C185: 0.26 | D185: 0.26 | E185: 0.2617042254 | F185: 0.05509868088 | G185: 0.05509868088 | H185: 0.05588438589 | I185: -3.026191481 | J185: 6.211414863 | K185: 3.379042789 | L185: 1.272543981e-05 | BA185: 1.05664488 | BJ185: 0.9463917526
A186: 1967-06-19 | B186: 5.02 | C186: 0.17 | D186: 0.17 | E186: 0.1717042254 | F186: 0.03445122875 | G186: 0.03445122875 | H186: 0.03523693377 | I186: -2.991740252 | J186: 2.780275535 | K186: 1.977236226 | L186: 2.747233645e-06 | BA186: 1.035051546 | BJ186: 0.9661354582
A187: 1967-07-19 | B187: 5.16 | C187: 0.14 | D187: 0.14 | E187: 0.1417042254 | F187: 0.02750664579 | G187: 0.02750664579 | H187: 0.02829235081 | I187: -2.964233606 | J187: 1.30831871 | K187: 1.196214424 | L187: 5.618371839e-07 | BA187: 1.027888446 | BJ187: 0.9728682171
A188: 1967-08-19 | B188: 5.28 | C188: 0.12 | D188: 0.12 | E188: 0.1217042254 | F188: 0.02298951822 | G188: 0.02298951822 | H188: 0.02377522324 | I188: -2.941244088 | J188: 0.6296911685 | K188: 0.7346577564 | L188: 9.755457189e-08 | BA188: 1.023255814 | BJ188: 0.9772727273
A189: 1967-09-19 | B189: 5.3 | C189: 0.02 | D189: 0.02 | E189: 0.02170422535 | F189: 0.00378072284 | G189: 0.00378072284 | H189: 0.004566427857 | I189: -2.937463365 | J189: 0.5523558826 | K189: 0.6732029169 | L189: 6.915831808e-08 | BA189: 1.003787879 | BJ189: 0.9962264151
A190: 1967-10-19 | B190: 5.48 | C190: 0.18 | D190: 0.18 | E190: 0.1817042254 | F190: 0.0333982804 | G190: 0.0333982804 | H190: 0.03418398542 | I190: -2.904065085 | J190: 0.146195192 | K190: 0.277516447 | L190: 8.322493136e-10 | BA190: 1.033962264 | BJ190: 0.9671532847
A191: 1967-11-19 | B191: 5.75 | C191: 0.27 | D191: 0.27 | E191: 0.2717042254 | F191: 0.04809475385 | G191: 0.04809475385 | H191: 0.04888045887 | I191: -2.855970331 | J191: 0.008968003657 | K191: 0.043164878 | L191: 2.799312116e-11 | BA191: 1.049270073 | BJ191: 0.9530434783
A192: 1967-12-19 | B192: 5.7 | C192: -0.05 | D192: 0.05 | E192: 0.04829577465 | F192: -0.008733679969 | G192: 0.008733679969 | H192: 0.007947974951 | I192: -2.864704011 | J192: 0.0167462617 | K192: 0.06545536503 | L192: 4.31065959e-13 | BA192: 0.9913043478 | BJ192: 1.00877193
A193: 1968-01-19 | B193: 5.53 | C193: -0.17 | D193: 0.17 | E193: 0.1682957746 | F193: -0.03027835931 | G193: 0.03027835931 | H193: 0.02949265429 | I193: -2.89498237 | J193: 0.09526705667 | K193: 0.2085908074 | L193: 1.011921218e-10 | BA193: 0.9701754386 | BJ193: 1.03074141
A194: 1968-02-19 | B194: 5.56 | C194: 0.03 | D194: 0.03 | E194: 0.03170422535 | F194: 0.005410292728 | G194: 0.005410292728 | H194: 0.006195997746 | I194: -2.889572078 | J194: 0.07254766335 | K194: 0.1739464698 | L194: 1.791972566e-11 | BA194: 1.005424955 | BJ194: 0.9946043165
A195: 1968-03-19 | B195: 5.74 | C195: 0.18 | D195: 0.18 | E195: 0.1817042254 | F195: 0.03186110207 | G195: 0.03186110207 | H195: 0.03264680709 | I195: -2.857710976 | J195: 0.01021517207 | K195: 0.04707934995 | L195: 1.488731207e-11 | BA195: 1.032374101 | BJ195: 0.968641115
A196: 1968-04-19 | B196: 5.64 | C196: -0.1 | D196: 0.1 | E196: 0.09829577465 | F196: -0.01757514482 | G196: 0.01757514482 | H196: 0.0167894398 | I196: -2.87528612 | J196: 0.03281087547 | K196: 0.1024893044 | L196: 4.567980395e-17 | BA196: 0.9825783972 | BJ196: 1.017730496
A197: 1968-05-19 | B197: 5.87 | C197: 0.23 | D197: 0.23 | E197: 0.2317042254 | F197: 0.03997056833 | G197: 0.03997056833 | H197: 0.04075627335 | I197: -2.835315552 | J197: 0.001434008802 | K197: 0.01271650827 | L197: 3.049110756e-09 | BA197: 1.040780142 | BJ197: 0.9608177172
A198: 1968-06-19 | B198: 5.72 | C198: -0.15 | D198: 0.15 | E198: 0.1482957746 | F198: -0.02588582845 | G198: 0.02588582845 | H198: 0.02510012343 | I198: -2.861201381 | J198: 0.01314594576 | K198: 0.05570077322 | L198: 3.287664194e-12 | BA198: 0.9744463373 | BJ198: 1.026223776
A199: 1968-07-19 | B199: 5.5 | C199: -0.22 | D199: 0.22 | E199: 0.2182957746 | F199: -0.03922071315 | G199: 0.03922071315 | H199: 0.03843500814 | I199: -2.900422094 | J199: 0.1236295015 | K199: 0.2481693131 | L199: 3.897218389e-10 | BA199: 0.9615384615 | BJ199: 1.04
A200: 1968-08-19 | B200: 5.42 | C200: -0.08 | D200: 0.08 | E200: 0.07829577465 | F200: -0.01465227679 | G200: 0.01465227679 | H200: 0.01386657177 | I200: -2.915074371 | J200: 0.235451284 | K200: 0.3813005006 | L200: 5.242037192e-09 | BA200: 0.9854545455 | BJ200: 1.014760148
... 542 more rows
